Workbook

Sheet INICIO

Sheet MENUDATOS (hidden)
A1: Cuadro 1 | B1: PADRÓN NACIONAL ELECTORA TOTAL Y VARIACIÓN SEGÚN PROVINCIA Y SEXO | C1: 1
A2: Gráfico 1 | B2: PADRÓN NACIONAL ELECTORAL, POR PROCESO ELECTORAL SEGÚN PROVINCIA | C2: G1
A3: Cuadro 2 | B3: COMPARATIVO PADRÓN ELECTORAL, FEBRERO 2010 Y 2014 | C3: G2
A4: Gráfico 2 | B4: DISTRIBUCIÓN DEL PADRÓN ELECTORAL POR SEXO Y GRUPOS DE EDAD | C4: 2
A5: Cuadro 3 | B5: ELECTORADO POR PROVINCIA , SEGÚN SEXO Y GRUPOS DE EDAD | C5: 3
A6: Cuadro 4 | B6: ELECTORADO EN EL EXTRANJETO POR SEXO SEGÚN PAIS | C6: 4
A7: Cuadro 5 | B7: ELECTORADO NATURALIZADO POR PAÍS DE ORIGEN | C7: 5
A8: Cuadro 6 | B8: PROMEDIO, MEDINA Y MODA DE LA EDAD DE LOS ELECTORES/AS | C8: 6
B9: ---- MENU PRINCIPAL ---- | C9: INICIO
A11: Cuadro 7 | B11: CANTONES Y DISTRITOS DAMINISTRATIVOS Y ELECTORALES SEGÚN PROVINCIA | C11: 7
A12: Cuadro 8 | B12: MOVIMIENTOS A LA DIVISIÓN TERRITORAIL ELECTORAL, SEGÚN PROVINCIA | C12: 8
A13: Cuadro 9 | B13: JUNTAS ELECTORALES, CENTROS DE VOTACIÓN Y TRANSMISIÓN SEGÚN PROVINCIA | C13: 9
A14: Cuadro 10 | B14: JUNTAS RECEPTORAS Y ELECTORADO H. ANCIANOS, C.PENITENCIARIOS Y Z.INDIGENAS SEGÚN PROVINCIA | C14: 10
A15: Cuadro 11 | B15: JUNTAS RECEPTORAS Y ELECTORADO EN CENTROS PENITENCIARIOS SEGÚN PROVINCIA Y DISTRITO ELECTORAL | C15: 11
A16: Cuadro 12 | B16: JUNTAS RECEPTORAS Y ELECTORADO EN HOGARES DE ANCIANOS SEGÚN PROVINCIA Y DISTRITO ELECTORAL | C16: 12
A17: Cuadro 13 | B17: JUNTAS RECEPTORAS Y ELECTORADO EN ZONAS INDÍGENAS SEGÚN PROVINCIA Y DISTRITO ELECTORAL | C17: 13
B18: ---- MENU PRINCIPAL ---- | C18: INICIO
A21: Cuadro 14 | B21: PARTIDOS POLÍTICOS QUE PARTICIPAN SEGÚN ESCALA | C21: 14
A22: Cuadro 15 | B22: MONTO PRESUPUESTADO PARA LAS ELECCIONES SEGÚN AÑO | C22: 15
A23: Cuadro 16 | B23: DONACIONES REPORTADAS SEGÚN PARTIDO POLÍTICO | C23: 16
A24: Cuadro 17 | B24: DONACIONES REPORTADAS SEGÚN AÑO | C24: 17
A25: Cuadro 18 | B25: FISCALIZACIÓN DE LOS PARTIDOS POLÍTICOS, POR AÑO, SEGÚN TIPO DE FISCALIZACIÓN | C25: 18
B26: ---- MENU PRINCIPAL ---- | C26: INICIO
A29: Cuadro 19 | B29: CANDIDATURAS A PRESIDENCIA Y VICEPRESIDENCIAS, POR SEXO SEGÚN GRUPOS DE EDAD | C29: 19
A30: Cuadro 20 | B30: CANDIDATOS DIPUTACIONES POR CARGO Y SEXO SEGÚN GRUPOS DE EDAD | C30: 20
A31: Gráfico 3 | B31: PIRAMIDE POBLACIONAL DE CANDIDATOS DIPUTACIONES POR SEXO SEGÚN GRUPOS DE EDAD | C31: 20YG3
A32: Cuadro 21 | B32: EDAD PROMEDIO CANDIDATOS A DIPUTACIONES POR CARGO Y SEXO SEGÚN PROVINCIA | C32: 21
A33: Cuadro 22 | B33: CANDIDATURAS A DIPUTACIONES POR AÑO SEGÚN PROVINCIA | C33: 22
A34: Cuadro 23 | B34: COMPOSICIÓN DE PAPELETAS POR SEXO SEGÚN TIPO DE CANDIDATURA | C34: 23
A35: Gráfico 4 | B35: DISTRIBUCIÓN POR TIPO DE CANDIDATURA SEGÚN SEXO | C35: G4
A36: Cuadro 24 | B36: CANDIDATURAS A DIPUTACIONES POR SEXO SEGÚN PARTIDO | C36: 24
A37: Cuadro 25 | B37: CANDIDATURAS A DIPUTACIONES POR SEXO SEGÚN PROVINCIA | C37: 25
B38: ---- MENU PRINCIPAL ---- | C38: INICIO

Sheet 1
A2: CUADRO 1
A3: COSTA RICA: TOTAL Y VARIACIÓN DEL PADRÓN NACIONAL ELECTORAL, SEGÚN PROVINCIA
A4: Y SEXO, DE FEBRERO DE 2010 A FEBRERO DE 2014
A6: PROVINCIA Y SEXO | B6: PADRÓN NACIONAL ELECTORAL | D6: VARIACIÓN
B8: FEBRERO 2010 | C8: FEBRERO 2014 | D8: ABSOLUTO | E8: %
A10: COSTA RICA | B10: 2822491 | C10: 3078321 | D10: =+C10-B10 -> 255830 | E10: =+D10/B10*100 -> 9.063979301
A11: HOMBRES | B11: 1409411 | C11: 1535869 | D11: =+C11-B11 -> 126458 | E11: =+D11/B11*100 -> 8.972400528
A12: MUJERES | B12: 1413080 | C12: 1542452 | D12: =+C12-B12 -> 129372 | E12: =+D12/B12*100 -> 9.155320293
A14: SAN JOSÉ | B14: 1008177 | C14: 1063061 | D14: =+C14-B14 -> 54884 | E14: =+D14/B14*100 -> 5.443885349
A15: HOMBRES | B15: 491462 | C15: 518312 | D15: =+C15-B15 -> 26850 | E15: =+D15/B15*100 -> 5.46329116
A16: MUJERES | B16: 516715 | C16: 544749 | D16: =+C16-B16 -> 28034 | E16: =+D16/B16*100 -> 5.425427944
A18: ALAJUELA | B18: 524215 | C18: 577493 | D18: =+C18-B18 -> 53278 | E18: =+D18/B18*100 -> 10.16338716
A19: HOMBRES | B19: 264559 | C19: 291277 | D19: =+C19-B19 -> 26718 | E19: =+D19/B19*100 -> 10.09907053
A20: MUJERES | B20: 259656 | C20: 286216 | D20: =+C20-B20 -> 26560 | E20: =+D20/B20*100 -> 10.22891826
A22: CARTAGO | B22: 328782 | C22: 359985 | D22: =+C22-B22 -> 31203 | E22: =+D22/B22*100 -> 9.490483056
A23: HOMBRES | B23: 164137 | C23: 179449 | D23: =+C23-B23 -> 15312 | E23: =+D23/B23*100 -> 9.328792411
A24: MUJERES | B24: 164645 | C24: 180536 | D24: =+C24-B24 -> 15891 | E24: =+D24/B24*100 -> 9.651674816
A26: HEREDIA | B26: 278544 | C26: 306901 | D26: =+C26-B26 -> 28357 | E26: =+D26/B26*100 -> 10.18043828
A27: HOMBRES | B27: 137417 | C27: 151098 | D27: =+C27-B27 -> 13681 | E27: =+D27/B27*100 -> 9.955827882
A28: MUJERES | B28: 141127 | C28: 155803 | D28: =+C28-B28 -> 14676 | E28: =+D28/B28*100 -> 10.39914403
A30: GUANACASTE | B30: 199237 | C30: 221688 | D30: =+C30-B30 -> 22451 | E30: =+D30/B30*100 -> 11.26848929
A31: HOMBRES | B31: 101106 | C31: 112201 | D31: =+C31-B31 -> 11095 | E31: =+D31/B31*100 -> 10.97363163
A32: MUJERES | B32: 98131 | C32: 109487 | D32: =+C32-B32 -> 11356 | E32: =+D32/B32*100 -> 11.57228603
A34: PUNTARENAS | B34: 259408 | C34: 287254 | D34: =+C34-B34 -> 27846 | E34: =+D34/B34*100 -> 10.7344415
A35: HOMBRES | B35: 134213 | C35: 147881 | D35: =+C35-B35 -> 13668 | E35: =+D35/B35*100 -> 10.1838123
A36: MUJERES | B36: 125195 | C36: 139373 | D36: =+C36-B36 -> 14178 | E36: =+D36/B36*100 -> 11.32473342
A38: LIMÓN | B38: 224128 | C38: 249285 | D38: =+C38-B38 -> 25157 | E38: =+D38/B38*100 -> 11.22438963
A39: HOMBRES | B39: 116517 | C39: 129143 | D39: =+C39-B39 -> 12626 | E39: =+D39/B39*100 -> 10.83618699
A40: MUJERES | B40: 107611 | C40: 120142 | D40: =+C40-B40 -> 12531 | E40: =+D40/B40*100 -> 11.64472034
A42: En el extranjero 1/ | B42: NA | C42: 12654 | D42: 12654 | E42: NA
A43: HOMBRES | B43: NA | C43: 6508 | D43: 6508 | E43: NA
A44: MUJERES | B44: NA | C44: 6146 | D44: 6146 | E44: NA
A47: NA: No Aplica
A48: 1/ Costarricenses inscritos(as) que pueden ejercer el voto en extranjero para designar los puestos de Presidencia y Vicepresidencias, así como en consultas populares de orden nacional, según el artículo 187 del Código Electoral.
A49: Fuente: Sección Padrón Electoral del Tribunal Supremo de Elecciones.

Sheet G1
K4: 2010 | L4: 2014
J6: EXTRANJERO | K6: 0 | L6: =+'1'!C42 -> 12654
J7: GUANACASTE | K7: 199237 | L7: =+'1'!C30 -> 221688
J8: LIMÓN | K8: 224128 | L8: =+'1'!C38 -> 249285
J9: PUNTARENAS | K9: 259408 | L9: =+'1'!C34 -> 287254
J10: HEREDIA | K10: 278544 | L10: =+'1'!C26 -> 306901
J11: CARTAGO | K11: 328782 | L11: =+'1'!C22 -> 359985
J12: ALAJUELA | K12: 524215 | L12: =+'1'!C18 -> 577493
J13: SAN JOSÉ | K13: 1008177 | L13: =+'1'!C14 -> 1063061
K15: 2550613 | L15: =SUM(L6:L13) -> 3078321
A26: Fuente: Cuadro 1.

Sheet 2
A2: CUADRO 2
A3: COSTA RICA: PADRÓN NACIONAL ELECTORAL, POR SEXO, SEGÚN PROVINCIA, CANTÓN
A4: Y EXTRANJERO, FEBRERO DE 2010 Y 2014
A6: PROVINCIA, CANTÓN Y EXTRANJERO | B6: PADRÓN NACIONAL ELECTORAL
B7: FEBRERO 2010 | E7: FEBRERO 2014
B8: TOTAL | C8: HOMBRES | D8: MUJERES | E8: TOTAL | F8: HOMBRES | G8: MUJERES
A10: COSTA RICA | B10: 2822491 | C10: 1409411 | D10: 1413080 | E10: =SUM(F10:G10) -> 3078321 | F10: =SUM(F11:F18) -> 1535869 | G10: =SUM(G11:G18) -> 1542452
A11: SAN JOSÉ | B11: 1008177 | C11: 491462 | D11: 516715 | E11: =SUM(F11:G11) -> 1063061 | F11: 518312 | G11: 544749
A12: ALAJUELA | B12: 524215 | C12: 264559 | D12: 259656 | E12: =SUM(F12:G12) -> 577493 | F12: 291277 | G12: 286216
A13: CARTAGO | B13: 328782 | C13: 164137 | D13: 164645 | E13: 359985 | F13: 179449 | G13: 180536
A14: HEREDIA | B14: 278544 | C14: 137417 | D14: 141127 | E14: 306901 | F14: 151098 | G14: 155803
A15: GUANACASTE | B15: 199237 | C15: 101106 | D15: 98131 | E15: 221688 | F15: 112201 | G15: 109487
A16: PUNTARENAS | B16: 259408 | C16: 134213 | D16: 125195 | E16: 287254 | F16: 147881 | G16: 139373
A17: LIMÓN | B17: 224128 | C17: 116517 | D17: 107611 | E17: 249285 | F17: 129143 | G17: 120142
A18: EXTRANJERO | B18: NA | C18: NA | D18: NA | E18: 12654 | F18: 6508 | G18: 6146
A19: SAN JOSÉ | B19: 1008177 | C19: 491462 | D19: 516715 | E19: 1063061 | F19: 518312 | G19: 544749
A20: SAN JOSÉ | B20: 226027 | C20: 108419 | D20: 117608 | E20: 228847 | F20: 110114 | G20: 118733
A21: ESCAZÚ | B21: 39855 | C21: 19409 | D21: 20446 | E21: 43354 | F21: 21195 | G21: 22159
A22: DESAMPARADOS | B22: 143636 | C22: 70487 | D22: 73149 | E22: 152242 | F22: 74550 | G22: 77692
A23: PURISCAL | B23: 24260 | C23: 12227 | D23: 12033 | E23: 26459 | F23: 13322 | G23: 13137
A24: TARRAZÚ | B24: 10376 | C24: 5328 | D24: 5048 | E24: 11458 | F24: 5814 | G24: 5644
A25: ASERRÍ | B25: 36900 | C25: 18456 | D25: 18444 | E25: 40321 | F25: 20123 | G25: 20198
A26: MORA | B26: 17043 | C26: 8457 | D26: 8586 | E26: 19190 | F26: 9521 | G26: 9669
A27: GOICOECHEA | B27: 85706 | C27: 41135 | D27: 44571 | E27: 87701 | F27: 41925 | G27: 45776
A28: SANTA ANA | B28: 27313 | C28: 13439 | D28: 13874 | E28: 31041 | F28: 15246 | G28: 15795
A29: ALAJUELITA | B29: 44270 | C29: 21997 | D29: 22273 | E29: 47597 | F29: 23554 | G29: 24043
A30: VÁZQUEZ DE CORONADO | B30: 44773 | C30: 21667 | D30: 23106 | E30: 49673 | F30: 24016 | G30: 25657
A31: ACOSTA | B31: 14081 | C31: 7371 | D31: 6710 | E31: 15551 | F31: 8044 | G31: 7507
A32: TIBÁS | B32: 55673 | C32: 26245 | D32: 29428 | E32: 55540 | F32: 26143 | G32: 29397
A33: MORAVIA | B33: 39778 | C33: 18992 | D33: 20786 | E33: 42357 | F33: 20301 | G33: 22056
A34: MONTES DE OCA | B34: 41139 | C34: 19137 | D34: 22002 | E34: 41489 | F34: 19500 | G34: 21989
A35: TURRUBARES | B35: 3963 | C35: 2078 | D35: 1885 | E35: 4375 | F35: 2280 | G35: 2095
A36: DOTA | B36: 4789 | C36: 2424 | D36: 2365 | E36: 5193 | F36: 2610 | G36: 2583
A37: CURRIDABAT | B37: 43957 | C37: 21209 | D37: 22748 | E37: 46270 | F37: 22273 | G37: 23997
A38: PÉREZ ZELEDÓN | B38: 96629 | C38: 48893 | D38: 47736 | E38: 105670 | F38: 53322 | G38: 52348
A39: LEÓN CORTÉS | B39: 8009 | C39: 4092 | D39: 3917 | E39: 8733 | F39: 4459 | G39: 4274
A40: ALAJUELA | B40: 524215 | C40: 264559 | D40: 259656 | E40: 577493 | F40: 291277 | G40: 286216
A41: ALAJUELA | B41: 170966 | C41: 85994 | D41: 84972 | E41: 185688 | F41: 93494 | G41: 92194
A42: SAN RAMÓN | B42: 52853 | C42: 26319 | D42: 26534 | E42: 58067 | F42: 28929 | G42: 29138
A43: GRECIA | B43: 50109 | C43: 25111 | D43: 24998 | E43: 55007 | F43: 27426 | G43: 27581
A44: SAN MATEO | B44: 3798 | C44: 1981 | D44: 1817 | E44: 4044 | F44: 2100 | G44: 1944
A45: ATENAS | B45: 17379 | C45: 8753 | D45: 8626 | E45: 18923 | F45: 9486 | G45: 9437
A46: NARANJO | B46: 27740 | C46: 13786 | D46: 13954 | E46: 29894 | F46: 14815 | G46: 15079
A47: PALMARES | B47: 24911 | C47: 12331 | D47: 12580 | E47: 27132 | F47: 13436 | G47: 13696
A48: POÁS | B48: 17866 | C48: 8989 | D48: 8877 | E48: 19747 | F48: 9940 | G48: 9807
A49: OROTINA | B49: 12685 | C49: 6363 | D49: 6322 | E49: 14116 | F49: 7035 | G49: 7081
A50: SAN CARLOS | B50: 86525 | C50: 44203 | D50: 42322 | E50: 97702 | F50: 49938 | G50: 47764
A51: ALFARO RUIZ | B51: 7844 | C51: 3918 | D51: 3926 | E51: 8490 | F51: 4259 | G51: 4231
A52: VALVERDE VEGA | B52: 12623 | C52: 6283 | D52: 6340 | E52: 13710 | F52: 6818 | G52: 6892
A53: UPALA | B53: 21183 | C53: 11122 | D53: 10061 | E53: 24597 | F53: 12821 | G53: 11776
A54: LOS CHILES | B54: 9004 | C54: 4838 | D54: 4166 | E54: 10457 | F54: 5621 | G54: 4836
A55: GUATUSO | B55: 8729 | C55: 4568 | D55: 4161 | E55: 9919 | F55: 5159 | G55: 4760
A56: CARTAGO | B56: 328782 | C56: 164137 | D56: 164645 | E56: 359985 | F56: 179449 | G56: 180536
A57: CARTAGO | B57: 104564 | C57: 51703 | D57: 52861 | E57: 113463 | F57: 56296 | G57: 57167
A58: PARAÍSO | B58: 39163 | C58: 19609 | D58: 19554 | E58: 43000 | F58: 21389 | G58: 21611
A59: LA UNIÓN | B59: 57841 | C59: 28779 | D59: 29062 | E59: 64441 | F59: 31956 | G59: 32485
A60: JIMÉNEZ | B60: 10397 | C60: 5405 | D60: 4992 | E60: 11308 | F60: 5836 | G60: 5472
A61: TURRIALBA | B61: 51433 | C61: 25846 | D61: 25587 | E61: 54654 | F61: 27475 | G61: 27179
A62: ALVARADO | B62: 8510 | C62: 4307 | D62: 4203 | E62: 9484 | F62: 4788 | G62: 4696
A63: OREAMUNO | B63: 30006 | C63: 14809 | D63: 15197 | E63: 33361 | F63: 16365 | G63: 16996
A64: EL GUARCO | B64: 26868 | C64: 13679 | D64: 13189 | E64: 30274 | F64: 15344 | G64: 14930
A65: HEREDIA | B65: 278544 | C65: 137417 | D65: 141127 | E65: 306901 | F65: 151098 | G65: 155803
A66: HEREDIA | B66: 84511 | C66: 40527 | D66: 43984 | E66: 90600 | F66: 43399 | G66: 47201
A67: BARVA | B67: 26982 | C67: 13248 | D67: 13734 | E67: 30088 | F67: 14747 | G67: 15341
A68: SANTO DOMINGO | B68: 30208 | C68: 14973 | D68: 15235 | E68: 32559 | F68: 16038 | G68: 16521
A69: SANTA BÁRBARA | B69: 22277 | C69: 11091 | D69: 11186 | E69: 24726 | F69: 12278 | G69: 12448
A70: SAN RAFAEL | B70: 29077 | C70: 14460 | D70: 14617 | E70: 32186 | F70: 15986 | G70: 16200
A71: SAN ISIDRO | B71: 12800 | C71: 6407 | D71: 6393 | E71: 14503 | F71: 7235 | G71: 7268
A72: BELÉN | B72: 15687 | C72: 7769 | D72: 7918 | E72: 17266 | F72: 8510 | G72: 8756
A73: FLORES | B73: 13404 | C73: 6525 | D73: 6879 | E73: 15087 | F73: 7390 | G73: 7697
A74: SAN PABLO | B74: 17791 | C74: 8586 | D74: 9205 | E74: 20119 | F74: 9754 | G74: 10365
A75: SARAPIQUÍ | B75: 25807 | C75: 13831 | D75: 11976 | E75: 29767 | F75: 15761 | G75: 14006
A76: GUANACASTE | B76: 199237 | C76: 101106 | D76: 98131 | E76: 221688 | F76: 112201 | G76: 109487
A77: LIBERIA | B77: 36952 | C77: 18465 | D77: 18487 | E77: 41245 | F77: 20723 | G77: 20522
A78: NICOYA | B78: 34993 | C78: 17705 | D78: 17288 | E78: 38300 | F78: 19245 | G78: 19055
A79: SANTA CRUZ | B79: 33780 | C79: 17303 | D79: 16477 | E79: 37832 | F79: 19323 | G79: 18509
A80: BAGACES | B80: 10928 | C80: 5566 | D80: 5362 | E80: 12446 | F80: 6320 | G80: 6126
A81: CARRILLO | B81: 19540 | C81: 9955 | D81: 9585 | E81: 22180 | F81: 11268 | G81: 10912
A82: CAÑAS | B82: 17069 | C82: 8576 | D82: 8493 | E82: 18440 | F82: 9272 | G82: 9168
A83: ABANGARES | B83: 11481 | C83: 5910 | D83: 5571 | E83: 12801 | F83: 6492 | G83: 6309
A84: TILARÁN | B84: 13144 | C84: 6609 | D84: 6535 | E84: 14132 | F84: 7079 | G84: 7053
A85: NANDAYURE | B85: 7390 | C85: 3861 | D85: 3529 | E85: 7979 | F85: 4134 | G85: 3845
A86: LA CRUZ | B86: 9025 | C86: 4627 | D86: 4398 | E86: 10846 | F86: 5518 | G86: 5328
A87: HOJANCHA | B87: 4935 | C87: 2529 | D87: 2406 | E87: 5487 | F87: 2827 | G87: 2660
A88: PUNTARENAS | B88: 259408 | C88: 134213 | D88: 125195 | E88: 287254 | F88: 147881 | G88: 139373
A89: PUNTARENAS | B89: 76163 | C89: 39160 | D89: 37003 | E89: 82240 | F89: 42269 | G89: 39971
A90: ESPARZA | B90: 18283 | C90: 9077 | D90: 9206 | E90: 20599 | F90: 10214 | G90: 10385
A91: BUENOS AIRES | B91: 26649 | C91: 14146 | D91: 12503 | E91: 29985 | F91: 15711 | G91: 14274
A92: MONTES DE ORO | B92: 8556 | C92: 4251 | D92: 4305 | E92: 9616 | F92: 4807 | G92: 4809
A93: OSA | B93: 18252 | C93: 9729 | D93: 8523 | E93: 20090 | F93: 10649 | G93: 9441
A94: AGUIRRE | B94: 16283 | C94: 8703 | D94: 7580 | E94: 18025 | F94: 9561 | G94: 8464
A95: GOLFITO | B95: 24375 | C95: 12707 | D95: 11668 | E95: 27210 | F95: 14223 | G95: 12987
A96: COTO BRUS | B96: 25753 | C96: 13080 | D96: 12673 | E96: 27667 | F96: 13980 | G96: 13687
A97: PARRITA | B97: 9503 | C97: 4985 | D97: 4518 | E97: 10844 | F97: 5604 | G97: 5240
A98: CORREDORES | B98: 27134 | C98: 13839 | D98: 13295 | E98: 31122 | F98: 15640 | G98: 15482
A99: GARABITO | B99: 8457 | C99: 4536 | D99: 3921 | E99: 9856 | F99: 5223 | G99: 4633
A100: LIMÓN | B100: 224128 | C100: 116517 | D100: 107611 | E100: 249285 | F100: 129143 | G100: 120142
A101: LIMÓN | B101: 61180 | C101: 30994 | D101: 30186 | E101: 64961 | F101: 32762 | G101: 32199
A102: POCOCÍ | B102: 73072 | C102: 38274 | D102: 34798 | E102: 83344 | F102: 43586 | G102: 39758
A103: SIQUIRRES | B103: 33841 | C103: 17811 | D103: 16030 | E103: 37389 | F103: 19658 | G103: 17731
A104: TALAMANCA | B104: 15029 | C104: 8009 | D104: 7020 | E104: 17572 | F104: 9254 | G104: 8318
A105: MATINA | B105: 17995 | C105: 9507 | D105: 8488 | E105: 19837 | F105: 10370 | G105: 9467
A106: GUÁCIMO | B106: 23011 | C106: 11922 | D106: 11089 | E106: 26182 | F106: 13513 | G106: 12669
A107: EXTRANJERO | B107: NA | C107: NA | D107: NA | E107: 12654 | F107: 6508 | G107: 6146
A110: Fuente: Sección Padrón Electoral del Tribunal Supremo de Elecciones.

Sheet 3
A2: CUADRO 3
A3: COSTA RICA: PADRÓN NACIONAL ELECTORAL, POR PROVINCIA Y EXTRANJERO, SEGÚN SEXO
A4: Y GRUPOS DE EDAD, ELECCIONES 2 DE FEBRERO DE 2014
A6: SEXO Y GRUPOS DE EDAD | B6: TOTAL | C6: PROVINCIA | J6: EXTRANJERO
C7: SAN JOSÉ | D7: ALAJUELA | E7: CARTAGO | F7: HEREDIA | G7: GUANACASTE | H7: PUNTARENAS | I7: LIMÓN
A9: COSTA RICA | B9: 3078321 | C9: 1063061 | D9: 577493 | E9: 359985 | F9: 306901 | G9: 221688 | H9: 287254 | I9: 249285 | J9: 12654
A10: 18 - 19 | B10: 135379 | C10: 42575 | D10: 26423 | E10: 15959 | F10: 12794 | G10: 10289 | H10: 13848 | I10: 13061 | J10: 430
A11: 20 - 24 | B11: 393474 | C11: 127701 | D11: 76070 | E11: 46980 | F11: 37077 | G11: 29304 | H11: 39029 | I11: 36115 | J11: 1198
A12: 25 - 29 | B12: 395586 | C12: 132436 | D12: 75881 | E12: 46873 | F12: 38319 | G12: 28317 | H12: 37957 | I12: 34457 | J12: 1346
A13: 30 - 34 | B13: 344546 | C13: 119622 | D13: 63037 | E13: 39963 | F13: 35692 | G13: 24539 | H13: 32085 | I13: 27695 | J13: 1913
A14: 35 - 39 | B14: 294124 | C14: 100001 | D14: 53380 | E14: 34929 | F14: 30854 | G14: 21161 | H14: 27876 | I14: 24194 | J14: 1729
A15: 40 - 44 | B15: 270443 | C15: 90282 | D15: 50257 | E15: 32927 | F15: 27384 | G15: 19269 | H15: 25751 | I15: 23071 | J15: 1502
A16: 45 - 49 | B16: 277377 | C16: 94228 | D16: 52961 | E16: 33486 | F16: 27869 | G16: 19681 | H16: 25777 | I16: 21999 | J16: 1376
A17: 50 - 54 | B17: 258002 | C17: 91247 | D17: 48938 | E17: 29902 | F17: 26237 | G17: 17905 | H17: 23010 | I17: 19600 | J17: 1163
A18: 55 - 59 | B18: 210940 | C18: 76736 | D18: 38639 | E18: 24046 | F18: 21735 | G18: 14591 | H18: 18572 | I18: 15831 | J18: 790
A19: 60 - 64 | B19: 158619 | C19: 59115 | D19: 28599 | E19: 17459 | F19: 16311 | G19: 11088 | H19: 13908 | I19: 11593 | J19: 546
A20: 65 - 69 | B20: 115370 | C20: 43579 | D20: 21235 | E20: 12618 | F20: 11402 | G20: 8284 | H20: 9997 | I20: 7953 | J20: 302
A21: 70 - 74 | B21: 83696 | C21: 30915 | D21: 16050 | E21: 9537 | F21: 8005 | G21: 6084 | H21: 7465 | I21: 5473 | J21: 167
A22: 75 - 79 | B22: 61429 | C22: 23260 | D22: 11502 | E22: 6886 | F22: 5726 | G22: 4701 | H22: 5397 | I22: 3863 | J22: 94
A23: 80 - 84 | B23: 41597 | C23: 16316 | D23: 7620 | E23: 4543 | F23: 3933 | G23: 3281 | H23: 3557 | I23: 2286 | J23: 61
A24: 85 Y MÁS | B24: 37739 | C24: 15048 | D24: 6901 | E24: 3877 | F24: 3563 | G24: 3194 | H24: 3025 | I24: 2094 | J24: 37
A25: HOMBRES | B25: 1535869 | C25: 518312 | D25: 291277 | E25: 179449 | F25: 151098 | G25: 112201 | H25: 147881 | I25: 129143 | J25: 6508
A26: 18 - 19 | B26: 68524 | C26: 21467 | D26: 13329 | E26: 8092 | F26: 6508 | G26: 5225 | H26: 7072 | I26: 6623 | J26: 208
A27: 20 - 24 | B27: 201403 | C27: 64932 | D27: 39394 | E27: 24138 | F27: 19037 | G27: 14899 | H27: 19881 | I27: 18537 | J27: 585
A28: 25 - 29 | B28: 201483 | C28: 66987 | D28: 39205 | E28: 23958 | F28: 19313 | G28: 14412 | H28: 19357 | I28: 17484 | J28: 767
A29: 30 - 34 | B29: 174584 | C29: 60395 | D29: 32317 | E29: 20230 | F29: 17891 | G29: 12456 | H29: 16341 | I29: 13902 | J29: 1052
A30: 35 - 39 | B30: 148152 | C30: 50260 | D30: 27086 | E30: 17465 | F30: 15457 | G30: 10586 | H30: 14078 | I30: 12278 | J30: 942
A31: 40 - 44 | B31: 135486 | C31: 44791 | D31: 25146 | E31: 16175 | F31: 13652 | G31: 9754 | H31: 13246 | I31: 11924 | J31: 798
A32: 45 - 49 | B32: 138526 | C32: 46340 | D32: 26431 | E32: 16666 | F32: 13601 | G32: 10001 | H32: 13325 | I32: 11436 | J32: 726
A33: 50 - 54 | B33: 127994 | C33: 43948 | D33: 24474 | E33: 14776 | F33: 12794 | G33: 9137 | H33: 11978 | I33: 10309 | J33: 578
A34: 55 - 59 | B34: 103809 | C34: 36224 | D34: 19362 | E34: 11858 | F34: 10443 | G34: 7421 | H34: 9670 | I34: 8490 | J34: 341
A35: 60 - 64 | B35: 77258 | C35: 27196 | D35: 14316 | E35: 8418 | F35: 7732 | G35: 5670 | H35: 7303 | I35: 6373 | J35: 250
A36: 65 - 69 | B36: 55802 | C36: 19990 | D36: 10370 | E36: 6117 | F36: 5401 | G36: 4064 | H36: 5349 | I36: 4376 | J36: 135
A37: 70 - 74 | B37: 39954 | C37: 13825 | D37: 7807 | E37: 4586 | F37: 3640 | G37: 3078 | H37: 3910 | I37: 3041 | J37: 67
A38: 75 - 79 | B38: 28569 | C38: 9850 | D38: 5486 | E38: 3242 | F38: 2577 | G38: 2385 | H38: 2908 | I38: 2090 | J38: 31
A39: 80 - 84 | B39: 18613 | C39: 6639 | D39: 3513 | E39: 2121 | F39: 1667 | G39: 1591 | H39: 1841 | I39: 1224 | J39: 17
A40: 85 Y MÁS | B40: 15712 | C40: 5468 | D40: 3041 | E40: 1607 | F40: 1385 | G40: 1522 | H40: 1622 | I40: 1056 | J40: 11
A41: MUJERES | B41: 1542452 | C41: 544749 | D41: 286216 | E41: 180536 | F41: 155803 | G41: 109487 | H41: 139373 | I41: 120142 | J41: 6146
A42: 18 - 19 | B42: 66855 | C42: 21108 | D42: 13094 | E42: 7867 | F42: 6286 | G42: 5064 | H42: 6776 | I42: 6438 | J42: 222
A43: 20 - 24 | B43: 192071 | C43: 62769 | D43: 36676 | E43: 22842 | F43: 18040 | G43: 14405 | H43: 19148 | I43: 17578 | J43: 613
A44: 25 - 29 | B44: 194103 | C44: 65449 | D44: 36676 | E44: 22915 | F44: 19006 | G44: 13905 | H44: 18600 | I44: 16973 | J44: 579
A45: 30 - 34 | B45: 169962 | C45: 59227 | D45: 30720 | E45: 19733 | F45: 17801 | G45: 12083 | H45: 15744 | I45: 13793 | J45: 861
A46: 35 - 39 | B46: 145972 | C46: 49741 | D46: 26294 | E46: 17464 | F46: 15397 | G46: 10575 | H46: 13798 | I46: 11916 | J46: 787
A47: 40 - 44 | B47: 134957 | C47: 45491 | D47: 25111 | E47: 16752 | F47: 13732 | G47: 9515 | H47: 12505 | I47: 11147 | J47: 704
A48: 45 - 49 | B48: 138851 | C48: 47888 | D48: 26530 | E48: 16820 | F48: 14268 | G48: 9680 | H48: 12452 | I48: 10563 | J48: 650
A49: 50 - 54 | B49: 130008 | C49: 47299 | D49: 24464 | E49: 15126 | F49: 13443 | G49: 8768 | H49: 11032 | I49: 9291 | J49: 585
A50: 55 - 59 | B50: 107131 | C50: 40512 | D50: 19277 | E50: 12188 | F50: 11292 | G50: 7170 | H50: 8902 | I50: 7341 | J50: 449
A51: 60 - 64 | B51: 81361 | C51: 31919 | D51: 14283 | E51: 9041 | F51: 8579 | G51: 5418 | H51: 6605 | I51: 5220 | J51: 296
A52: 65 - 69 | B52: 59568 | C52: 23589 | D52: 10865 | E52: 6501 | F52: 6001 | G52: 4220 | H52: 4648 | I52: 3577 | J52: 167
A53: 70 - 74 | B53: 43742 | C53: 17090 | D53: 8243 | E53: 4951 | F53: 4365 | G53: 3006 | H53: 3555 | I53: 2432 | J53: 100
A54: 75 - 79 | B54: 32860 | C54: 13410 | D54: 6016 | E54: 3644 | F54: 3149 | G54: 2316 | H54: 2489 | I54: 1773 | J54: 63
A55: 80 - 84 | B55: 22984 | C55: 9677 | D55: 4107 | E55: 2422 | F55: 2266 | G55: 1690 | H55: 1716 | I55: 1062 | J55: 44
A56: 85 Y MÁS | B56: 22027 | C56: 9580 | D56: 3860 | E56: 2270 | F56: 2178 | G56: 1672 | H56: 1403 | I56: 1038 | J56: 26
A59: Fuente: Sección Padrón Electoral del Tribunal Supremo de Elecciones.

Sheet G2
I4: HOMBRES | J4: MUJERES
I5: =+'3'!B26 -> 68524 | J5: =+'3'!B42*-1 -> -66855 | K5: 18 - 19 | L5: 18 - 19
I6: =+'3'!B27 -> 201403 | J6: =+'3'!B43*-1 -> -192071 | K6: 20 - 24 | L6: 20 - 24
I7: =+'3'!B28 -> 201483 | J7: =+'3'!B44*-1 -> -194103 | K7: 25 - 29 | L7: 25 - 29
I8: =+'3'!B29 -> 174584 | J8: =+'3'!B45*-1 -> -169962 | K8: 30 - 34 | L8: 30 - 34
I9: =+'3'!B30 -> 148152 | J9: =+'3'!B46*-1 -> -145972 | K9: 35 - 39 | L9: 35 - 39
I10: =+'3'!B31 -> 135486 | J10: =+'3'!B47*-1 -> -134957 | K10: 40 - 44 | L10: 40 - 44
I11: =+'3'!B32 -> 138526 | J11: =+'3'!B48*-1 -> -138851 | K11: 45 - 49 | L11: 45 - 49
I12: =+'3'!B33 -> 127994 | J12: =+'3'!B49*-1 -> -130008 | K12: 50 - 54 | L12: 50 - 54
I13: =+'3'!B34 -> 103809 | J13: =+'3'!B50*-1 -> -107131 | K13: 55 - 59 | L13: 55 - 59
I14: =+'3'!B35 -> 77258 | J14: =+'3'!B51*-1 -> -81361 | K14: 60 - 64 | L14: 60 - 64
I15: =+'3'!B36 -> 55802 | J15: =+'3'!B52*-1 -> -59568 | K15: 65 - 69 | L15: 65 - 69
I16: =+'3'!B37 -> 39954 | J16: =+'3'!B53*-1 -> -43742 | K16: 70 - 74 | L16: 70 - 74
I17: =+'3'!B38 -> 28569 | J17: =+'3'!B54*-1 -> -32860 | K17: 75 - 79 | L17: 75 - 79
I18: =+'3'!B39 -> 18613 | J18: =+'3'!B55*-1 -> -22984 | K18: 80 - 84 | L18: 80 - 84
I19: =+'3'!B40 -> 15712 | J19: =+'3'!B56*-1 -> -22027 | K19: 85 Y MÁS | L19: 85 Y MÁS
I21: =SUM(I5:I20) -> 1535869 | J21: =SUM(J5:J20) -> -1542452
J23: =+I21-J21 -> 3078321
A31: Fuente: Cuadro 3.

Sheet 4
A2: CUADRO 4
A3: COSTA RICA: ELECTORADO EN EL PADRÓN INSCRITO EN EL EXTRANJERO1/
A4: POR SEXO, SEGÚN CONTINENTE Y PAÍS
A5: ELECCIONES 2 DE FEBRERO 2014
A7: Continente y país | B7: Total | D7: Hombres | F7: Mujeres
B8: Absoluto | C8: % | D8: Absoluto | E8: % | F8: Absoluto | G8: %
A10: Total | B10: =B12+B36+B49+B58 -> 12654 | C10: =B10/B$10*100 -> 100 | D10: =D12+D36+D49+D58 -> 6508 | E10: =D10/D$10*100 -> 100 | F10: =F12+F36+F49+F58 -> 6146 | G10: =F10/F$10*100 -> 100
A12: América | B12: =D12+F12 -> 10991 | C12: =B12/B$10*100 -> 86.85791054 | D12: =SUM(D13:D34) -> 5730 | E12: =D12/D$10*100 -> 88.04548248 | F12: =SUM(F13:F34) -> 5261 | G12: =F12/F$10*100 -> 85.6003905
A13: Estados Unidos | B13: =D13+F13 -> 8316 | C13: =B13/B$10*100 -> 65.71834993 | D13: 4439 | E13: =D13/D$10*100 -> 68.20835894 | F13: 3877 | G13: =F13/F$10*100 -> 63.08167914
A14: Canadá | B14: =D14+F14 -> 484 | C14: =B14/B$10*100 -> 3.824877509 | D14: 263 | E14: =D14/D$10*100 -> 4.041180086 | F14: 221 | G14: =F14/F$10*100 -> 3.595834689
A15: México | B15: 418 | C15: 3.303303303 | D15: 172 | E15: 2.642901045 | F15: 246 | G15: 4.002603319
A16: Guatemala | B16: 227 | C16: 1.793899162 | D16: 95 | E16: 1.459741856 | F16: 132 | G16: 2.147738366
A17: Panamá | B17: 212 | C17: 1.67535957 | D17: 108 | E17: 1.659496005 | F17: 104 | G17: 1.692157501
A18: El Salvador | B18: 169 | C18: 1.335546072 | D18: 71 | E18: 1.090964966 | F18: 98 | G18: 1.59453303
A19: Venezuela | B19: 162 | C19: 1.280227596 | D19: 65 | E19: 0.9987707437 | F19: 97 | G19: 1.578262284
A20: Honduras | B20: 146 | C20: 1.153785364 | D20: 79 | E20: 1.213890596 | F20: 67 | G20: 1.090139928
A21: Colombia | B21: 138 | C21: 1.090564248 | D21: 61 | E21: 0.9373079287 | F21: 77 | G21: 1.25284738
A22: Nicaragua | B22: 130 | C22: 1.027343133 | D22: 62 | E22: 0.9526736325 | F22: 68 | G22: 1.106410674
A23: Argentina | B23: 128 | C23: 1.011537854 | D23: 71 | E23: 1.090964966 | F23: 57 | G23: 0.9274324764
A24: Chile | B24: 115 | C24: 0.9088035404 | D24: 61 | E24: 0.9373079287 | F24: 54 | G24: 0.8786202408
A25: Perú | B25: 89 | C25: 0.7033349139 | D25: 48 | E25: 0.73755378 | F25: 41 | G25: 0.6671005532
A26: República Dominicana | B26: 83 | C26: 0.655919077 | D26: 44 | E26: 0.676090965 | F26: 39 | G26: 0.6345590628
A27: Ecuador | B27: 47 | C27: 0.3714240556 | D27: 22 | E27: 0.3380454825 | F27: 25 | G27: 0.40676863
A28: Cuba | B28: 31 | C28: 0.2449818239 | D28: 20 | E28: 0.307314075 | F28: 11 | G28: 0.1789781972
A29: Brasil | B29: 33 | C29: 0.2607871029 | D29: 20 | E29: 0.307314075 | F29: 13 | G29: 0.2115196876
A30: Bolivia | B30: 31 | C30: 0.2449818239 | D30: 14 | E30: 0.2151198525 | F30: 17 | G30: 0.2766026684
A31: Uruguay | B31: 15 | C31: 0.1185395922 | D31: 8 | E31: 0.12292563 | F31: 7 | G31: 0.1138952164
A32: Paraguay | B32: 10 | C32: 0.07902639482 | D32: 5 | E32: 0.07682851875 | F32: 5 | G32: 0.081353726
A33: Trinidad y Tobago | B33: 4 | C33: 0.03161055793 | D33: 2 | E33: 0.0307314075 | F33: 2 | G33: 0.0325414904
A34: Belice | B34: 3 | C34: 0.02370791844 | D34: 0 | E34: 0 | F34: 3 | G34: 0.0488122356
A36: Europa | B36: =D36+F36 -> 1382 | C36: =B36/B$10*100 -> 10.92144776 | D36: =SUM(D37:D47) -> 644 | E36: =D36/D$10*100 -> 9.895513215 | F36: =SUM(F37:F47) -> 738 | G36: =F36/F$10*100 -> 12.00780996
A37: España | B37: =D37+F37 -> 368 | C37: =B37/B$10*100 -> 2.908171329 | D37: 197 | E37: =D37/D$10*100 -> 3.027043639 | F37: 171 | G37: =F37/F$10*100 -> 2.782297429
A38: Francia | B38: =D38+F38 -> 191 | C38: =B38/B$10*100 -> 1.509404141 | D38: 78 | E38: =D38/D$10*100 -> 1.198524892 | F38: 113 | G38: =F38/F$10*100 -> 1.838594208
A39: Alemania | B39: 166 | C39: 1.311838154 | D39: 97 | E39: 1.490473264 | F39: 69 | G39: 1.122681419
A40: Suiza | B40: 162 | C40: 1.280227596 | D40: 56 | E40: 0.86047941 | F40: 106 | G40: 1.724698991
A41: Italia | B41: 114 | C41: 0.9009009009 | D41: 43 | E41: 0.6607252612 | F41: 71 | G41: 1.155222909
A42: Reino Unido | B42: 111 | C42: 0.8771929825 | D42: 44 | E42: 0.676090965 | F42: 67 | G42: 1.090139928
A43: Holanda | B43: 100 | C43: 0.7902639482 | D43: 42 | E43: 0.6453595575 | F43: 58 | G43: 0.9437032216
A44: Bélgica | B44: 53 | C44: 0.4188398925 | D44: 26 | E44: 0.3995082975 | F44: 27 | G44: 0.4393101204
A45: Austria | B45: 51 | C45: 0.4030346136 | D45: 24 | E45: 0.36877689 | F45: 27 | G45: 0.4393101204
A46: Noruega | B46: 40 | C46: 0.3161055793 | D46: 20 | E46: 0.307314075 | F46: 20 | G46: 0.325414904
A47: Rusia | B47: 26 | C47: 0.2054686265 | D47: 17 | E47: 0.2612169637 | F47: 9 | G47: 0.1464367068
A49: Asia | B49: =D49+F49 -> 225 | C49: =B49/B$10*100 -> 1.778093883 | D49: =SUM(D50:D56) -> 106 | E49: =D49/D$10*100 -> 1.628764597 | F49: =SUM(F50:F56) -> 119 | G49: =F49/F$10*100 -> 1.936218679
A50: China | B50: =D50+F50 -> 71 | C50: =B50/B$10*100 -> 0.5610874032 | D50: 36 | E50: =D50/D$10*100 -> 0.553165335 | F50: 35 | G50: =F50/F$10*100 -> 0.569476082
A51: Israel | B51: 41 | C51: 0.3240082187 | D51: 14 | E51: 0.2151198525 | F51: 27 | G51: 0.4393101204
A52: Japón | B52: 39 | C52: 0.3082029398 | D52: 17 | E52: 0.2612169637 | F52: 22 | G52: 0.3579563944
A53: Singapur | B53: 28 | C53: 0.2212739055 | D53: 14 | E53: 0.2151198525 | F53: 14 | G53: 0.2277904328
A54: Corea | B54: 21 | C54: 0.1659554291 | D54: 11 | E54: 0.1690227412 | F54: 10 | G54: 0.162707452
A55: Qatar | B55: 19 | C55: 0.1501501502 | D55: 8 | E55: 0.12292563 | F55: 11 | G55: 0.1789781972
A56: India | B56: 6 | C56: 0.04741583689 | D56: 6 | E56: 0.0921942225 | F56: 0 | G56: 0
A58: Oceanía | B58: =D58+F58 -> 56 | C58: =B58/B$10*100 -> 0.442547811 | D58: =SUM(D59) -> 28 | E58: =D58/D$10*100 -> 0.430239705 | F58: =SUM(F59) -> 28 | G58: =F58/F$10*100 -> 0.4555808656
A59: Australia | B59: =D59+F59 -> 56 | C59: =B59/B$10*100 -> 0.442547811 | D59: 28 | E59: =D59/D$10*100 -> 0.430239705 | F59: 28 | G59: =F59/F$10*100 -> 0.4555808656
A62: 1/ Costarricenses inscritos(as) que pueden ejercer el voto en extranjero para designar los puestos de Presidencia y Vicepresidencias, así como en consultas populares de orden nacional, según el artículo 187 del Código Electoral.
A63: Fuente: Sección Padrón Electoral del Tribunal Supremo de Elecciones.

Sheet 5
A2: CUADRO 5
A3: COSTA RICA: TOTAL DE ELECTORES NATURALIZADOS, POR PAÍS DE ORIGEN
A4: SEGÚN SEXO Y GRUPOS DE EDAD, ELECCIONES 2 DE FEBRERO DE 20141/
A6: SEXO Y GRUPOS DE EDAD | B6: PAÍS DE ORIGEN
B7: Total | C7: Nicaragua | D7: Colombia | E7: El Salvador | F7: Cuba | G7: China | H7: Perú | I7: Panamá | J7: Resto de países
A9: COSTA RICA | B9: 49963 | C9: 25046 | D9: 5788 | E9: 3476 | F9: 2252 | G9: 1855 | H9: 1574 | I9: 1428 | J9: 8544
A10: MENOS DE 20 | B10: 266 | C10: 79 | D10: 106 | E10: 3 | F10: 17 | G10: 9 | H10: 8 | I10: 0 | J10: 44
A11: 20 - 24 | B11: 917 | C11: 352 | D11: 274 | E11: 15 | F11: 93 | G11: 18 | H11: 29 | I11: 5 | J11: 131
A12: 25 - 29 | B12: 1756 | C12: 928 | D12: 324 | E12: 19 | F12: 82 | G12: 81 | H12: 60 | I12: 17 | J12: 245
A13: 30 - 34 | B13: 4035 | C13: 2142 | D13: 746 | E13: 154 | F13: 122 | G13: 162 | H13: 137 | I13: 31 | J13: 541
A14: 35 - 39 | B14: 5646 | C14: 2845 | D14: 935 | E14: 370 | F14: 231 | G14: 208 | H14: 204 | I14: 67 | J14: 786
A15: 40 - 44 | B15: 6401 | C15: 3176 | D15: 861 | E15: 466 | F15: 288 | G15: 256 | H15: 208 | I15: 168 | J15: 978
A16: 45 - 49 | B16: 6383 | C16: 3099 | D16: 840 | E16: 436 | F16: 327 | G16: 201 | H16: 203 | I16: 193 | J16: 1084
A17: 50 - 54 | B17: 5311 | C17: 2415 | D17: 642 | E17: 445 | F17: 295 | G17: 168 | H17: 213 | I17: 192 | J17: 941
A18: 55 - 59 | B18: 4586 | C18: 2141 | D18: 407 | E18: 480 | F18: 220 | G18: 164 | H18: 180 | I18: 173 | J18: 821
A19: 60 - 64 | B19: 3975 | C19: 1807 | D19: 266 | E19: 403 | F19: 167 | G19: 180 | H19: 143 | I19: 158 | J19: 851
A20: 65 - 69 | B20: 3179 | C20: 1542 | D20: 174 | E20: 290 | F20: 138 | G20: 130 | H20: 93 | I20: 155 | J20: 657
A21: 70 - 74 | B21: 2335 | C21: 1250 | D21: 91 | E21: 168 | F21: 97 | G21: 97 | H21: 39 | I21: 83 | J21: 510
A22: 75 - 79 | B22: 1973 | C22: 1169 | D22: 64 | E22: 114 | F22: 60 | G22: 68 | H22: 30 | I22: 66 | J22: 402
A23: 80 - 84 | B23: 1546 | C23: 954 | D23: 32 | E23: 72 | F23: 51 | G23: 65 | H23: 14 | I23: 71 | J23: 287
A24: 85 Y MÁS | B24: 1654 | C24: 1147 | D24: 26 | E24: 41 | F24: 64 | G24: 48 | H24: 13 | I24: 49 | J24: 266
A26: HOMBRES | B26: 22833 | C26: 10690 | D26: 2745 | E26: 1504 | F26: 1235 | G26: 995 | H26: 862 | I26: 626 | J26: 4176
A27: MENOS DE 20 | B27: 141 | C27: 41 | D27: 56 | E27: 0 | F27: 12 | G27: 7 | H27: 4 | I27: 0 | J27: 21
A28: 20 - 24 | B28: 461 | C28: 163 | D28: 148 | E28: 8 | F28: 56 | G28: 6 | H28: 14 | I28: 2 | J28: 64
A29: 25 - 29 | B29: 722 | C29: 341 | D29: 150 | E29: 10 | F29: 34 | G29: 46 | H29: 27 | I29: 5 | J29: 109
A30: 30 - 34 | B30: 1675 | C30: 801 | D30: 340 | E30: 76 | F30: 50 | G30: 107 | H30: 78 | I30: 10 | J30: 213
A31: 35 - 39 | B31: 2413 | C31: 1148 | D31: 394 | E31: 160 | F31: 116 | G31: 117 | H31: 105 | I31: 30 | J31: 343
A32: 40 - 44 | B32: 2984 | C32: 1431 | D32: 429 | E32: 219 | F32: 154 | G32: 146 | H32: 99 | I32: 76 | J32: 430
A33: 45 - 49 | B33: 2987 | C33: 1411 | D33: 395 | E33: 186 | F33: 191 | G33: 89 | H33: 102 | I33: 86 | J33: 527
A34: 50 - 54 | B34: 2331 | C34: 923 | D34: 323 | E34: 190 | F34: 173 | G34: 87 | H34: 115 | I34: 81 | J34: 439
A35: 55 - 59 | B35: 1904 | C35: 749 | D35: 171 | E35: 171 | F35: 133 | G35: 93 | H35: 102 | I35: 77 | J35: 408
A36: 60 - 64 | B36: 1842 | C36: 749 | D36: 127 | E36: 163 | F36: 102 | G36: 98 | H36: 85 | I36: 56 | J36: 462
A37: 65 - 69 | B37: 1628 | C37: 718 | D37: 104 | E37: 131 | F37: 85 | G37: 66 | H37: 68 | I37: 71 | J37: 385
A38: 70 - 74 | B38: 1202 | C38: 632 | D38: 46 | E38: 84 | F38: 50 | G38: 40 | H38: 28 | I38: 40 | J38: 282
A39: 75 - 79 | B39: 964 | C39: 537 | D39: 39 | E39: 57 | F39: 33 | G39: 35 | H39: 18 | I39: 37 | J39: 208
A40: 80 - 84 | B40: 756 | C40: 457 | D40: 12 | E40: 35 | F40: 19 | G40: 37 | H40: 10 | I40: 29 | J40: 157
A41: 85 Y MÁS | B41: 823 | C41: 589 | D41: 11 | E41: 14 | F41: 27 | G41: 21 | H41: 7 | I41: 26 | J41: 128
A43: MUJERES | B43: 27130 | C43: 14356 | D43: 3043 | E43: 1972 | F43: 1017 | G43: 860 | H43: 712 | I43: 802 | J43: 4368
A44: MENOS DE 20 | B44: 125 | C44: 38 | D44: 50 | E44: 3 | F44: 5 | G44: 2 | H44: 4 | I44: 0 | J44: 23
A45: 20 - 24 | B45: 456 | C45: 189 | D45: 126 | E45: 7 | F45: 37 | G45: 12 | H45: 15 | I45: 3 | J45: 67
A46: 25 - 29 | B46: 1034 | C46: 587 | D46: 174 | E46: 9 | F46: 48 | G46: 35 | H46: 33 | I46: 12 | J46: 136
A47: 30 - 34 | B47: 2360 | C47: 1341 | D47: 406 | E47: 78 | F47: 72 | G47: 55 | H47: 59 | I47: 21 | J47: 328
A48: 35 - 39 | B48: 3233 | C48: 1697 | D48: 541 | E48: 210 | F48: 115 | G48: 91 | H48: 99 | I48: 37 | J48: 443
A49: 40 - 44 | B49: 3417 | C49: 1745 | D49: 432 | E49: 247 | F49: 134 | G49: 110 | H49: 109 | I49: 92 | J49: 548
A50: 45 - 49 | B50: 3396 | C50: 1688 | D50: 445 | E50: 250 | F50: 136 | G50: 112 | H50: 101 | I50: 107 | J50: 557
A51: 50 - 54 | B51: 2980 | C51: 1492 | D51: 319 | E51: 255 | F51: 122 | G51: 81 | H51: 98 | I51: 111 | J51: 502
A52: 55 - 59 | B52: 2682 | C52: 1392 | D52: 236 | E52: 309 | F52: 87 | G52: 71 | H52: 78 | I52: 96 | J52: 413
A53: 60 - 64 | B53: 2133 | C53: 1058 | D53: 139 | E53: 240 | F53: 65 | G53: 82 | H53: 58 | I53: 102 | J53: 389
A54: 65 - 69 | B54: 1551 | C54: 824 | D54: 70 | E54: 159 | F54: 53 | G54: 64 | H54: 25 | I54: 84 | J54: 272
A55: 70 - 74 | B55: 1133 | C55: 618 | D55: 45 | E55: 84 | F55: 47 | G55: 57 | H55: 11 | I55: 43 | J55: 228
A56: 75 - 79 | B56: 1009 | C56: 632 | D56: 25 | E56: 57 | F56: 27 | G56: 33 | H56: 12 | I56: 29 | J56: 194
A57: 80 - 84 | B57: 790 | C57: 497 | D57: 20 | E57: 37 | F57: 32 | G57: 28 | H57: 4 | I57: 42 | J57: 130
A58: 85 Y MÁS | B58: 831 | C58: 558 | D58: 15 | E58: 27 | F58: 37 | G58: 27 | H58: 6 | I58: 23 | J58: 138
A61: 1/ Incluye las personas menores que tramitaron su cédula y cumplirán 18 años hasta el 2 de febrero de 2014. Según el artículo 76 de la Ley 3504: "Ley Orgánica del Tribunal Supremo de Elecciones y del Registro Civil".
A63: Fuente: Sección Padrón Electoral del Tribunal Supremo de Elecciones.

Sheet 6
A2: CUADRO 6
A3: COSTA RICA: PROMEDIO, MEDIANA Y MODA DE LA EDAD DEL ELECTOR/A, POR SEXO, SEGÚN PROVINCIA
A4: CANTÓN Y EXTRANJERO, ELECCIONES 2 DE FEBRERO DE 2014
A6: PROVINCIA, CANTÓN Y EXTRANJERO | B6: TOTAL | E6: HOMBRES | H6: MUJERES
B7: PROMEDIO | C7: MEDIANA | D7: MODA | E7: PROMEDIO | F7: MEDIANA | G7: MODA | H7: PROMEDIO | I7: MEDIANA | J7: MODA
A9: COSTA RICA | B9: 41.76623458 | C9: 39 | D9: 28 | E9: 41.3142449 | F9: 39 | G9: 28 | H9: 42.21629522 | I9: 40 | J9: 28
A10: SAN JOSÉ | B10: =+B18 -> 42.59709179 | C10: =+C18 -> 40 | D10: 28 | E10: 41.72462725 | F10: 39 | G10: 28 | H10: 43.4272151 | I10: 43 | J10: 28
A11: ALAJUELA | B11: =+B39 -> 41.56814888 | C11: =+C39 -> 39 | D11: 28 | E11: 41.18643422 | F11: 38 | G11: 23 | H11: 41.95661319 | I11: 41 | J11: 28
A12: CARTAGO | B12: =+B55 -> 41.38501326 | C12: =+C55 -> 39 | D12: 27 | E12: 40.95738065 | F12: 38 | G12: 23 | H12: 41.81007112 | I12: 40 | J12: 24
A13: HEREDIA | B13: =+B64 -> 41.89001991 | C13: =+C64 -> 39 | D13: 28 | E13: 41.26351772 | F13: 39 | G13: 28 | H13: 42.49760274 | I13: 40 | J13: 24
A14: GUANACASTE | B14: =+B75 -> 41.74539894 | C14: =+C75 -> 39 | D14: 19 | E14: 41.6466609 | F14: 39 | G14: 21 | H14: 41.84658453 | I14: 38 | J14: 22
A15: PUNTARENAS | B15: =+B87 -> 41.01951235 | C15: =+C87 -> 38 | D15: 24 | E15: 41.2375694 | F15: 39 | G15: 24 | H15: 40.78814405 | I15: 38 | J15: 25
A16: LIMÓN | B16: =+B99 -> 40.03211184 | C16: =+C99 -> 37 | D16: 19 | E16: 40.40187234 | F16: 38 | G16: 20 | H16: 39.634649 | I16: 40 | J16: 25
A17: EXTRANJERO | B17: =+B106 -> 40.32748538 | C17: =+C106 -> 39 | D17: 33 | E17: 39.48478795 | F17: 38 | G17: 31 | H17: 41.21981777 | I17: 42 | J17: 27
A18: SAN JOSÉ | B18: 42.59709179 | C18: 40 | D18: 28 | E18: 41.72462725 | F18: 39 | G18: 28 | H18: 43.4272151 | I18: 40 | J18: 21
A19: SAN JOSÉ | B19: 44.17844674 | C19: 42 | D19: 28 | E19: 42.77119167 | F19: 40 | G19: 25 | H19: 45.48354712 | I19: 38 | J19: 24
A20: ESCAZÚ | B20: 42.97105227 | C20: 41 | D20: 28 | E20: 42.22458127 | F20: 40 | G20: 24 | H20: 43.68504896 | I20: 40 | J20: 24
A21: DESAMPARADOS | B21: 41.62796732 | C21: 39 | D21: 24 | E21: 40.81031522 | F21: 38 | G21: 26 | H21: 42.41255213 | I21: 39 | J21: 23
A22: PURISCAL | B22: 42.43259382 | C22: 40 | D22: 24 | E22: 42.3915328 | F22: 40 | G22: 24 | H22: 42.47423308 | I22: 44 | J22: 28
A23: TARRAZÚ | B23: 41.10106476 | C23: 38 | D23: 22 | E23: 41.33866529 | F23: 39 | G23: 20 | H23: 40.85630758 | I23: 42 | J23: 31
A24: ASERRÍ | B24: 40.8672652 | C24: 38 | D24: 28 | E24: 40.54474979 | F24: 38 | G24: 28 | H24: 41.18858303 | I24: 44 | J24: 29
A25: MORA | B25: 41.99015112 | C25: 40 | D25: 25 | E25: 41.86429997 | F25: 40 | G25: 21 | H25: 42.11407591 | I25: 40 | J25: 31
A26: GOICOECHEA | B26: 43.12933718 | C26: 41 | D26: 24 | E26: 42.02444842 | F26: 39 | G26: 24 | H26: 44.1412749 | I26: 41 | J26: 28
A27: SANTA ANA | B27: 42.09261944 | C27: 40 | D27: 28 | E27: 41.60665092 | F27: 40 | G27: 28 | H27: 42.56169674 | I27: 42 | J27: 24
A28: ALAJUELITA | B28: 40.4364981 | C28: 37 | D28: 28 | E28: 39.7852594 | F28: 37 | G28: 19 | H28: 41.07449154 | I28: 38 | J28: 21
A29: VÁZQUEZ DE CORONADO | B29: 41.43120005 | C29: 39 | D29: 28 | E29: 40.73696702 | F29: 38 | G29: 28 | H29: 42.08103052 | I29: 38 | J29: 23
A30: ACOSTA | B30: 42.03003022 | C30: 40 | D30: 23 | E30: 42.20959722 | F30: 40 | G30: 22 | H30: 41.83761822 | I30: 40 | J30: 28
A31: TIBÁS | B31: 44.60864242 | C31: 42 | D31: 33 | E31: 43.24052328 | F31: 41 | G31: 25 | H31: 45.82532231 | I31: 40 | J31: 24
A32: MORAVIA | B32: 43.3102911 | C32: 41 | D32: 28 | E32: 42.25929757 | F32: 39 | G32: 30 | H32: 44.27765687 | I32: 40 | J32: 28
A33: MONTES DE OCA | B33: 44.51162959 | C33: 42 | D33: 29 | E33: 43.00897436 | F33: 40 | G33: 31 | H33: 45.84419482 | I33: 44 | J33: 22
A34: TURRUBARES | B34: 42.69394286 | C34: 41 | D34: 20 | E34: 43.03640351 | F34: 41 | G34: 20 | H34: 42.32124105 | I34: 42 | J34: 23
A35: DOTA | B35: 42.22838436 | C35: 41 | D35: 19 | E35: 41.92873563 | F35: 41 | G35: 19 | H35: 42.53116531 | I35: 40 | J35: 27
A36: CURRIDABAT | B36: 42.90520856 | C36: 40 | D36: 27 | E36: 41.91132762 | F36: 39 | G36: 27 | H36: 43.82768679 | I36: 41 | J36: 28
A37: PÉREZ ZELEDÓN | B37: 40.64736444 | C37: 38 | D37: 24 | E37: 40.49300476 | F37: 37 | G37: 24 | H37: 40.80459616 | I37: 39 | J37: 21
A38: LEÓN CORTÉS | B38: 40.6252147 | C38: 38 | D38: 23 | E38: 40.66718995 | F38: 39 | G38: 23 | H38: 40.58142255 | I38: 40 | J38: 28
A39: ALAJUELA | B39: 41.56814888 | C39: 39 | D39: 28 | E39: 41.18643422 | F39: 38 | G39: 23 | H39: 41.95661319 | I39: 37 | J39: 27
A40: ALAJUELA | B40: 41.90760308 | C40: 39 | D40: 28 | E40: 41.20341412 | F40: 38 | G40: 28 | H40: 42.62172159 | I40: 40 | J40: 22
A41: SAN RAMÓN | B41: 42.08533246 | C41: 40 | D41: 23 | E41: 41.76272944 | F41: 39 | G41: 23 | H41: 42.40562153 | I41: 40 | J41: 23
A42: GRECIA | B42: 41.96107768 | C42: 40 | D42: 28 | E42: 41.60796325 | F42: 39 | G42: 23 | H42: 42.31220768 | I42: 36 | J42: 19
A43: SAN MATEO | B43: 44.77324431 | C43: 43 | D43: 22 | E43: 44.41904762 | F43: 43 | G43: 20 | H43: 45.1558642 | I43: 35 | J43: 19
A44: ATENAS | B44: 43.43312371 | C44: 41 | D44: 23 | E44: 43.07200084 | F44: 41 | G44: 27 | H44: 43.79612165 | I44: 37 | J44: 19
A45: NARANJO | B45: 41.96460828 | C45: 39 | D45: 25 | E45: 41.35140061 | F45: 39 | G45: 25 | H45: 42.56708005 | I45: 40 | J45: 24
A46: PALMARES | B46: 42.53342916 | C46: 40 | D46: 28 | E46: 41.99516225 | F46: 39 | G46: 28 | H46: 43.0614778 | I46: 38 | J46: 24
A47: POÁS | B47: 41.36825847 | C47: 39 | D47: 24 | E47: 41.03531187 | F47: 38 | G47: 24 | H47: 41.7057204 | I47: 39 | J47: 19
A48: OROTINA | B48: 42.27132332 | C48: 40 | D48: 24 | E48: 42.1326226 | F48: 40 | G48: 24 | H48: 42.40912301 | I48: 40 | J48: 27
A49: SAN CARLOS | B49: 40.25013818 | C49: 37 | D49: 27 | E49: 40.08190156 | F49: 37 | G49: 23 | H49: 40.42603216 | I49: 41 | J49: 27
A50: ALFARO RUIZ | B50: 41.86878681 | C50: 40 | D50: 22 | E50: 41.47335055 | F50: 39 | G50: 21 | H50: 42.26683999 | I50: 39 | J50: 19
A51: VALVERDE VEGA | B51: 41.93318745 | C51: 40 | D51: 23 | E51: 41.63200352 | F51: 39 | G51: 28 | H51: 42.23113755 | I51: 39 | J51: 20
A52: UPALA | B52: 39.52010408 | C52: 36 | D52: 19 | E52: 40.0868887 | F52: 37 | G52: 19 | H52: 38.9030231 | I52: 38 | J52: 22
A53: LOS CHILES | B53: 38.96098307 | C53: 35 | D53: 20 | E53: 39.48247643 | F53: 36 | G53: 20 | H53: 38.35483871 | I53: 41 | J53: 27
A54: GUATUSO | B54: 40.75189031 | C54: 38 | D54: 19 | E54: 41.49932157 | F54: 39 | G54: 20 | H54: 39.94180672 | I54: 39 | J54: 28
A55: CARTAGO | B55: 41.38501326 | C55: 39 | D55: 27 | E55: 40.95738065 | F55: 38 | G55: 23 | H55: 41.81007112 | I55: 42 | J55: 28
A56: CARTAGO | B56: 41.7108044 | C56: 39 | D56: 27 | E56: 40.99415589 | F56: 38 | G56: 23 | H56: 42.41653401 | I56: 39 | J56: 32
A57: PARAÍSO | B57: 40.68469767 | C57: 38 | D57: 24 | E57: 40.42288092 | F57: 37 | G57: 21 | H57: 40.9438249 | I57: 40 | J57: 28
A58: LA UNIÓN | B58: 40.91586102 | C58: 38 | D58: 24 | E58: 40.34804106 | F58: 38 | G58: 22 | H58: 41.47443435 | I58: 40 | J58: 20
A59: JIMÉNEZ | B59: 41.79403962 | C59: 40 | D59: 27 | E59: 41.81100069 | F59: 40 | G59: 27 | H59: 41.77595029 | I59: 41 | J59: 28
A60: TURRIALBA | B60: 42.64200242 | C60: 40 | D60: 28 | E60: 42.51916288 | F60: 40 | G60: 25 | H60: 42.76617977 | I60: 40 | J60: 22
A61: ALVARADO | B61: 41.10132855 | C61: 39 | D61: 23 | E61: 41.05597327 | F61: 39 | G61: 23 | H61: 41.1475724 | I61: 40 | J61: 27
A62: OREAMUNO | B62: 40.82212763 | C62: 38 | D62: 20 | E62: 40.54732661 | F62: 38 | G62: 28 | H62: 41.08672629 | I62: 36 | J62: 19
A63: EL GUARCO | B63: 40.44444077 | C63: 38 | D63: 24 | E63: 40.12193691 | F63: 38 | G63: 19 | H63: 40.77588747 | I63: 37 | J63: 24
A64: HEREDIA | B64: 41.89001991 | C64: 39 | D64: 28 | E64: 41.26351772 | F64: 39 | G64: 28 | H64: 42.49760274 | I64: 41 | J64: 21
A65: HEREDIA | B65: 42.08860927 | C65: 39 | D65: 27 | E65: 41.04306551 | F65: 38 | G65: 28 | H65: 43.04993538 | I65: 41 | J65: 28
A66: BARVA | B66: 41.47261367 | C66: 39 | D66: 28 | E66: 40.89760629 | F66: 38 | G66: 28 | H66: 42.02535689 | I66: 38 | J66: 22
A67: SANTO DOMINGO | B67: 43.60054056 | C67: 41 | D67: 29 | E67: 42.74878414 | F67: 40 | G67: 27 | H67: 44.42739544 | I67: 38 | J67: 27
A68: SANTA BÁRBARA | B68: 41.37037936 | C68: 39 | D68: 28 | E68: 40.86496172 | F68: 38 | G68: 23 | H68: 41.8688946 | I68: 38 | J68: 21
A69: SAN RAFAEL | B69: 41.96436339 | C69: 39 | D69: 28 | E69: 41.44670337 | F69: 39 | G69: 28 | H69: 42.47518519 | I69: 39 | J69: 21
A70: SAN ISIDRO | B70: 42.04750741 | C70: 40 | D70: 23 | E70: 41.70615066 | F70: 40 | G70: 23 | H70: 42.38731425 | I70: 41 | J70: 19
A71: BELÉN | B71: 42.57251245 | C71: 40 | D71: 24 | E71: 42.02444183 | F71: 40 | G71: 35 | H71: 43.10518502 | I71: 41 | J71: 19
A72: FLORES | B72: 42.24093591 | C72: 40 | D72: 28 | E72: 41.54221922 | F72: 39 | G72: 24 | H72: 42.91178381 | I72: 34 | J72: 19
A73: SAN PABLO | B73: 41.89283762 | C73: 39 | D73: 28 | E73: 40.98216116 | F73: 38 | G73: 26 | H73: 42.74983116 | I73: 40 | J73: 22
A74: SARAPIQUÍ | B74: 39.53542514 | C74: 37 | D74: 19 | E74: 40.25563099 | F74: 37 | G74: 19 | H74: 38.72497501 | I74: 39 | J74: 19
A75: GUANACASTE | B75: 41.74539894 | C75: 39 | D75: 19 | E75: 41.6466609 | F75: 39 | G75: 21 | H75: 41.84658453 | I75: 40 | J75: 24
A76: LIBERIA | B76: 39.94755728 | C76: 36 | D76: 24 | E76: 39.60686194 | F76: 36 | G76: 24 | H76: 40.29158951 | I76: 35 | J76: 19
A77: NICOYA | B77: 43.28159269 | C77: 41 | D77: 19 | E77: 43.23252793 | F77: 41 | G77: 28 | H77: 43.33114668 | I77: 40 | J77: 21
A78: SANTA CRUZ | B78: 42.83291922 | C78: 40 | D78: 28 | E78: 42.68472804 | F78: 40 | G78: 21 | H78: 42.98762764 | I78: 38 | J78: 19
A79: BAGACES | B79: 41.32251326 | C79: 39 | D79: 22 | E79: 41.47183544 | F79: 39 | G79: 22 | H79: 41.16846229 | I79: 37 | J79: 24
A80: CARRILLO | B80: 41.4110009 | C80: 38 | D80: 19 | E80: 41.12504437 | F80: 38 | G80: 19 | H80: 41.70628666 | I80: 38 | J80: 20
A81: CAÑAS | B81: 40.83183297 | C81: 38 | D81: 23 | E81: 40.48565574 | F81: 37 | G81: 23 | H81: 41.18193717 | I81: 38 | J81: 20
A82: ABANGARES | B82: 42.02515428 | C82: 40 | D82: 21 | E82: 42.3844732 | F82: 40 | G82: 21 | H82: 41.6554129 | I82: 37 | J82: 24
A83: TILARÁN | B83: 43.35317011 | C83: 41 | D83: 28 | E83: 43.39850261 | F83: 42 | G83: 28 | H83: 43.30767049 | I83: 37 | J83: 21
A84: NANDAYURE | B84: 43.04724903 | C84: 41 | D84: 19 | E84: 43.26415094 | F84: 41 | G84: 20 | H84: 42.81404421 | I84: 36 | J84: 27
A85: LA CRUZ | B85: 38.35257238 | C85: 35 | D85: 19 | E85: 38.69662921 | F85: 35 | G85: 19 | H85: 37.99624625 | I85: 38 | J85: 19
A86: HOJANCHA | B86: 42.43940222 | C86: 40 | D86: 21 | E86: 42.2974885 | F86: 40 | G86: 21 | H86: 42.59022556 | I86: 37 | J86: 20
A87: PUNTARENAS | B87: 41.01951235 | C87: 38 | D87: 24 | E87: 41.2375694 | F87: 39 | G87: 24 | H87: 40.78814405 | I87: 36 | J87: 28
A88: PUNTARENAS | B88: 41.76072471 | C88: 39 | D88: 19 | E88: 41.61096785 | F88: 39 | G88: 19 | H88: 41.91909134 | I88: 34 | J88: 19
A89: ESPARZA | B89: 42.2191854 | C89: 40 | D89: 23 | E89: 42.03857451 | F89: 40 | G89: 25 | H89: 42.39682234 | I89: 35 | J89: 19
A90: BUENOS AIRES | B90: 39.22231116 | C90: 36 | D90: 20 | E90: 39.61307364 | F90: 36 | G90: 20 | H90: 38.79220961 | I90: 37 | J90: 19
A91: MONTES DE ORO | B91: 42.54617304 | C91: 40 | D91: 21 | E91: 42.59538173 | F91: 40 | G91: 21 | H91: 42.49698482 | I91: 35 | J91: 29
A92: OSA | B92: 41.41304131 | C92: 39 | D92: 29 | E92: 41.93971265 | F92: 39 | G92: 29 | H92: 40.81898104 | I92: 30 | J92: 33
A93: AGUIRRE | B93: 40.13664355 | C93: 37 | D93: 24 | E93: 40.51082523 | F93: 38 | G93: 24 | H93: 39.71396503 | I93: 37 | J93: 20
A94: GOLFITO | B94: 41.10499816 | C94: 38 | D94: 20 | E94: 41.63833228 | F94: 39 | G94: 19 | H94: 40.52090552 | I94: 34 | J94: 30
A95: COTO BRUS | B95: 41.29923736 | C95: 39 | D95: 20 | E95: 41.72904149 | F95: 39 | G95: 21 | H95: 40.86023234 | I95: 39 | J95: 33
A96: PARRITA | B96: 40.98155662 | C96: 38 | D96: 24 | E96: 41.62044968 | F96: 39 | G96: 24 | H96: 40.29828244 | I96: 38 | J96: 27
A97: CORREDORES | B97: 40.10079686 | C97: 37 | D97: 24 | E97: 40.52774936 | F97: 37 | G97: 19 | H97: 39.66948715 | I97: 36 | J97: 36
A98: GARABITO | B98: 39.03956981 | C98: 36 | D98: 27 | E98: 39.49282022 | F98: 36 | G98: 27 | H98: 38.52859918 | I98: 37 | J98: 29
A99: LIMÓN | B99: 40.03211184 | C99: 37 | D99: 19 | E99: 40.40187234 | F99: 38 | G99: 20 | H99: 39.634649 | I99: 24 | J99: 21
A100: LIMÓN | B100: 40.8650575 | C100: 38 | D100: 19 | E100: 41.05173677 | F100: 39 | G100: 27 | H100: 40.67511413 | I100: 33 | J100: 24
A101: POCOCÍ | B101: 39.95578566 | C101: 37 | D101: 20 | E101: 40.29153857 | F101: 38 | G101: 19 | H101: 39.58770562 | I101: 35 | J101: 21
A102: SIQUIRRES | B102: 39.89307015 | C102: 37 | D102: 21 | E102: 40.38223624 | F102: 38 | G102: 21 | H102: 39.35074164 | I102: 26 | J102: 25
A103: TALAMANCA | B103: 38.47877305 | C103: 35 | D103: 19 | E103: 39.22260644 | F103: 36 | G103: 20 | H103: 37.65123828 | I103: 42 | J103: 40
A104: MATINA | B104: 39.33024147 | C104: 37 | D104: 19 | E104: 40.10559306 | F104: 38 | G104: 20 | H104: 38.48093377 | I104: 41 | J104: 19
A105: GUÁCIMO | B105: 39.98128485 | C105: 37 | D105: 20 | E105: 40.24568934 | F105: 38 | G105: 20 | H105: 39.69926592 | I105: 38.5 | J105: 30
A106: EXTRANJERO | B106: 40.32748538 | C106: 39 | D106: 33 | E106: 39.48478795 | F106: 38 | G106: 31 | H106: 41.21981777 | I106: 36 | J106: 33
A109: Promedio: media aritmética cociente de la suma de las observaciones entre la cantidad de observaciones, se denota  = S xi /n
A110: Mediana: valor que separa en dos grupos las observaciones, ordenadas de menor a mayor.
A111: Moda: valor de la variable que más veces se repite, es decir, el valor con mayor frecuencia absoluta.
A113: Fuente: Sección Padrón Electoral del Tribunal Supremo de Elecciones.

Sheet 7
A2: CUADRO 7
A3: COSTA RICA: CANTONES, DISTRITOS ADMINISTRATIVOS Y ELECTORALES
A4: SEGÚN PROVINCIA, ELECCIONES 2 DE FEBRERO DE 2014
A6: PROVINCIA | B6: CANTONES | C6: DISTRITOS
C7: ADMINISTRATIVOS | D7: ELECTORALES
A9: COSTA RICA | B9: =SUM(B11:B17) -> 81 | C9: =SUM(C11:C17) -> 478 | D9: =SUM(D11:D17) -> 2043
A11: SAN JOSÉ | B11: 20 | C11: 121 | D11: 439
A12: ALAJUELA | B12: 15 | C12: 113 | D12: 438
A13: CARTAGO | B13: 8 | C13: 51 | D13: 193
A14: HEREDIA | B14: 10 | C14: 47 | D14: 114
A15: GUANACASTE | B15: 11 | C15: 59 | D15: 294
A16: PUNTARENAS | B16: 11 | C16: 58 | D16: 374
A17: LIMÓN | B17: 6 | C17: 29 | D17: 191
A20: Fuente: Contraloría Electoral del Tribunal Supremo de Elecciones.

Sheet 8
A2: CUADRO 8
A3: COSTA RICA: MOVIMIENTOS A LA DIVISIÓN TERRITORIAL ELECTORAL
A4: SEGÚN PROVINCIA, ELECCIONES 2 DE FEBRERO DE 2014
A6: PROVINCIA | B6: DISTRITOS ADMINISTRATIVOS CREADOS | C6: DISTRITOS ELECTORALES 1/
C7: CREADOS | D7: REFUNDIDOS | E7: REUBICADOS | F7: MODIFICADOS
A9: COSTA RICA | B9: =SUM(B10:B17) -> 5 | C9: =SUM(C10:C17) -> 14 | D9: 1 | E9: 15 | F9: 5
A11: SAN JOSÉ | B11: 1 | C11: 3 | D11: 0 | E11: 1 | F11: 1
A12: ALAJUELA | B12: 2 | C12: 1 | D12: 0 | E12: 5 | F12: 3
A13: CARTAGO | B13: 0 | C13: 1 | D13: 0 | E13: 0 | F13: 0
A14: HEREDIA | B14: 0 | C14: 1 | D14: 0 | E14: 0 | F14: 0
A15: GUANACASTE | B15: 0 | C15: 1 | D15: 0 | E15: 2 | F15: 0
A16: PUNTARENAS | B16: 1 | C16: 4 | D16: 0 | E16: 4 | F16: 1
A17: LIMÓN | B17: 1 | C17: 3 | D17: 1 | E17: 3 | F17: 0
A20: 1/ Para este proceso electoral no se eliminaron Distritos Electorales.
A21: Fuente: Contraloría Electoral del Tribunal Supremo de Elecciones.

Sheet 9
A2: CUADRO 9
A3: COSTA RICA: CENTROS DE VOTACIÓN, JUNTAS RECEPTORAS Y
A4: CENTROS DE TRANSMISIÓN, SEGÚN PROVINCIA
A5: ELECCIONES 2 DE FEBRERO DE 2014
A7: PROVINCIA | B7: CENTROS DE VOTACIÓN1/ | C7: JUNTAS RECEPTORAS | D7: CENTROS DE TRANSMISIÓN 2/
A9: COSTA RICA | B9: =SUM(B11:B19) -> 2112 | C9: =SUM(C11:C19) -> 6515 | D9: 685
A11: SAN JOSÉ | B11: 453 | C11: 2104 | D11: 187
A12: ALAJUELA | B12: 439 | C12: 1259 | D12: 143
A13: CARTAGO | B13: 193 | C13: 743 | D13: 81
A14: HEREDIA | B14: 116 | C14: 602 | D14: 64
A15: GUANACASTE | B15: 295 | C15: 542 | D15: 38
A16: PUNTARENAS | B16: 373 | C16: 692 | D16: 52
A17: LIMÓN | B17: 191 | C17: 512 | D17: 59
A18: EXTRANJERO | B18: 52 | C18: 61 | D18: 61
A21: 1/ Datos estimados al 10 de enero de 2014 sujetos a modificaciones.
A22: 2/ Datos estimados al 13 de enero de 2014 sujetos a modificaciones.
A23: Fuente: Dirección General del Registro Electoral y Financiamiento de Partidos Políticos, Sección de Padrón Electoral y Programa Electoral Transmisión de Datos

Sheet 10
A2: CUADRO 10
A3: COSTA RICA: JUNTAS RECEPTORAS Y ELECTORADO EN CENTROS PENITENCIARIOS
A4: HOGARES DE ANCIANOS Y ZONAS INDÍGENAS, SEGÚN PROVINCIA
A5: ELECCIONES 2 DE FEBRERO DE 2014
A7: PROVINCIA | B7: CENTROS PENITENCIARIOS | D7: HOGARES DE ANCIANOS | F7: ZONAS INDÍGENAS
B8: JUNTAS | C8: ELECTORADO | D8: JUNTAS | E8: ELECTORADO | F8: JUNTAS | G8: ELECTORADO
A10: COSTA RICA | B10: =SUM(B12:B19) -> 30 | C10: =SUM(C12:C19) -> 8713 | D10: 38 | E10: 2112 | F10: 106 | G10: =SUM(G12:G18) -> 35041
A12: SAN JOSÉ | B12: 6 | C12: 2006 | D12: 9 | E12: 606 | F12: =+'13'!C10 -> 5 | G12: 1499
A13: ALAJUELA | B13: 13 | C13: 3371 | D13: 9 | E13: 663 | F13: =+'13'!C16 -> 3 | G13: 858
A14: CARTAGO | B14: 2 | C14: 640 | D14: 2 | E14: 184 | F14: =+'13'!C21 -> 12 | G14: 2829
A15: HEREDIA | B15: 1 | C15: 17 | D15: 2 | E15: 122 | F15: 0 | G15: 0
A16: GUANACASTE | B16: 2 | C16: 686 | D16: 5 | E16: 165 | F16: =+'13'!C34 -> 2 | G16: 753
A17: PUNTARENAS | B17: 2 | C17: 569 | D17: 8 | E17: 286 | F17: =+'13'!C38 -> 45 | G17: 13256
A18: LIMÓN | B18: 4 | C18: 1424 | D18: 3 | E18: 86 | F18: =+'13'!C79 -> 39 | G18: 15846
A21: Fuente: Sección Padrón Electoral, Contraloría Electoral y Programa Electoral: Equipación de condiciones para el ejercicio del voto

Sheet 11
A2: CUADRO 11
A3: COSTA RICA: JUNTAS RECEPTORAS Y ELECTORADO EN CENTROS PENITENCIARIOS
A4: SEGÚN PROVINCIA Y DISTRITO ELECTORAL, ELECCIONES 2 DE FEBRERO DE 2014
A6: CÓDIGO ELECTORAL | B6: PROVINCIA Y DISTRITO ELECTORAL | C6: NÚMERO DE JUNTAS | D6: ELECTORADO
B8: COSTA RICA | C8: =+C10+C15+C27+C30+C33+C37+C40 -> 30 | D8: =+D10+D15+D27+D30+D33+D37+D40 -> 8713
B10: SAN JOSÉ | C10: =SUM(C11:C13) -> 6 | D10: =SUM(D11:D13) -> 2006
A11: 101030 | B11: C.P. CRISTO REY | C11: 2 | D11: 652
A12: 103034 | B12: C.P. SAN RAFAEL ARRIBA | C12: 2 | D12: 528
A13: 119105 | B13: C.P. PALMARES | C13: 2 | D13: 826
B15: ALAJUELA | C15: =SUM(C16:C25) -> 13 | D15: =SUM(D16:D25) -> 3371
A16: 201058 | B16: C.P. TALLERES INDUSTRIALES | C16: 1 | D16: 169
A17: 201059 | B17: C.P. SAN RAFAEL | C17: 1 | D17: 415
A18: 201060 | B18: C.P. ÁMBITO B (MÍNIMA) | C18: 2 | D18: 459
A19: 201062 | B19: C.P. ÁMBITO C (MEDIANA ABIERTA) | C19: 1 | D19: 434
A20: 201063 | B20: C.P. ÁMBITOS D (MEDIANA CERRADA) E (MÁXIMA) | C20: 1 | D20: 380
A21: 201064 | B21: C.P. GERARDO RODRÍGUEZ ECHEVERRÍA | C21: 2 | D21: 744
A22: 201065 | B22: C.P. ADULTO MAYOR | C22: 1 | D22: 138
A23: 201071 | B23: C.P. ADULTO JOVEN | C23: 1 | D23: 66
A24: 202043 | B24: C.P. SAN RAMÓN | C24: 1 | D24: 110
A25: 210093 | B25: C.P. PALMERA (LA MARINA) | C25: 2 | D25: 456
B27: CARTAGO | C27: =SUM(C28) -> 2 | D27: =SUM(D28) -> 640
A28: 301032 | B28: C.P. SAN FRANCISCO | C28: 2 | D28: 640
B30: HEREDIA | C30: =SUM(C31) -> 1 | D30: =SUM(D31) -> 17
A31: 401018 | B31: C.P. SAN AGUSTÍN | C31: 1 | D31: 17
B33: GUANACASTE | C33: =SUM(C34:C35) -> 2 | D33: =SUM(D34:D35) -> 686
A34: 501011 | B34: C.P. LIBERIA (MODULO B CASITAS) | C34: 1 | D34: 314
A35: 501022 | B35: C.P. LIBERIA (MODULO D1-D2) | C35: 1 | D35: 372
B37: PUNTARENAS | C37: =SUM(C38) -> 2 | D37: =SUM(D38) -> 569
A38: 601094 | B38: C.P. EL ROBLE | C38: 2 | D38: 569
B40: LIMÓN | C40: =SUM(C41:C43) -> 4 | D40: =SUM(D41:D43) -> 1424
A41: 701037 | B41: C.P.RÍO BLANCO [SANDOVAL] | C41: 2 | D41: 620
A42: 702035 | B42: C.P. ROXANA (MODULOS A-B-C) | C42: 1 | D42: 482
A43: 702049 | B43: C.P. ROXANA (MODULOS D-E) | C43: 1 | D43: 322
A46: Fuente: Sección Padrón Electoral, Contraloría Electoral y Programa Electoral: Equipación de condiciones para el ejercicio del voto

Sheet 12
A2: CUADRO 12
A4: COSTA RICA: JUNTAS RECEPTORAS Y ELECTORADO EN HOGARES DE ANCIANOS, SEGÚN PROVINCIA
A5: Y DISTRITO ELECTORAL, ELECCIONES 2 DE FEBRERO DE 2014
A7: CÓDIGO ELECTORAL | B7: PROVINCIA Y DISTRITO ELECTORAL | C7: NÚMERO DE JUNTAS | D7: ELECTORADO
B9: COSTA RICA | C9: =+C11+C22+C33+C37+C41+C48+C58 -> 38 | D9: =+D11+D22+D33+D37+D41+D48+D58 -> 2112
B11: SAN JOSÉ | C11: =SUM(C12:C20) -> 9 | D11: =SUM(D12:D20) -> 606
A12: 103036 | B12: H.A. OFELIA CARVAJAL DE NARANJO | C12: 1 | D12: 71
A13: 103037 | B13: H.A. SAN CAYETANO | C13: 1 | D13: 50
A14: 104045 | B14: H.A. CORAZÓN DE JESÚS | C14: 1 | D14: 53
A15: 105016 | B15: H.A. LOS SANTOS | C15: 1 | D15: 64
A16: 106024 | B16: H.A. SAN FRANCISCO DE ASÍS | C16: 1 | D16: 37
A17: 108002 | B17: H.A.CARLOS MARÍA ULLOA | C17: 1 | D17: 173
A18: 112031 | B18: H.A. ACOSTA | C18: 1 | D18: 39
A19: 114006 | B19: H.A. CASA NAZARETH | C19: 1 | D19: 39
A20: 119108 | B20: H.A. MONS.DELFÍN QUESADA CASTRO | C20: 1 | D20: 80
A21: 0
B22: ALAJUELA | C22: =SUM(C23:C31) -> 9 | D22: =SUM(D23:D31) -> 663
A23: 201066 | B23: H.A. SANTIAGO CRESPO CALVO | C23: 1 | D23: 190
A24: 202045 | B24: H.A. SAN RAMÓN | C24: 1 | D24: 54
A25: 203045 | B25: H.A. JAFETH JIMÉNEZ MORALES | C25: 1 | D25: 87
A26: 205016 | B26: H.A. HORTENSIA RODRÍGUEZ S.DE B. | C26: 1 | D26: 63
A27: 206022 | B27: H.A. JOSÉ DEL OLMO | C27: 1 | D27: 45
A28: 207009 | B28: H.A. PALMARES | C28: 1 | D28: 61
A29: 209012 | B29: H.A. PRESB.JESÚS MARÍA VARGAS | C29: 1 | D29: 34
A30: 210094 | B30: H.A. SAN VICENTE DE PAÚL | C30: 1 | D30: 71
A31: 211012 | B31: H.A. SAN RAFAEL | C31: 1 | D31: 58
D32: 0
B33: CARTAGO | C33: =SUM(C34:C35) -> 2 | D33: =SUM(D34:D35) -> 184
A34: 301033 | B34: H.A. ASILO DE LA VEJEZ | C34: 1 | D34: 105
A35: 305068 | B35: H.A. SAN BUENAVENTURA | C35: 1 | D35: 79
D36: 0
B37: HEREDIA | C37: =SUM(C38:C39) -> 2 | D37: =SUM(D38:D39) -> 122
A38: 402012 | B38: H.A. REINA DE LOS ANGELES | C38: 1 | D38: 18
A39: 409004 | B39: H.A.ALFREDO Y DELIA GONZÁLEZ FLORES | C39: 1 | D39: 104
D40: 0
B41: GUANACASTE | C41: =SUM(C42:C46) -> 5 | D41: =SUM(D42:D46) -> 165
A42: 501012 | B42: H.A. LIBERIA | C42: 1 | D42: 27
A43: 502084 | B43: H.A. SAN BLAS | C43: 1 | D43: 35
A44: 503045 | B44: H.A. NUESTRA SEÑORA DEL ROSARIO | C44: 1 | D44: 28
A45: 507023 | B45: H.A. SAN JORGE | C45: 1 | D45: 38
A46: 508024 | B46: H.A. TILARÁN | C46: 1 | D46: 37
D47: 0
B48: PUNTARENAS | C48: =SUM(C49:C56) -> 8 | D48: =SUM(D49:D56) -> 286
A49: 601103 | B49: H.A. MIGUEL MORENO | C49: 1 | D49: 36
A50: 601106 | B50: H.A. MARÍA INMACULADA | C50: 1 | D50: 37
A51: 602018 | B51: H.A. CARLOS VENEGAS | C51: 1 | D51: 33
A52: 604014 | B52: H.A. FRAY CASIANO DE MADRID | C52: 1 | D52: 40
A53: 605037 | B53: H. A. PALMAR SUR | C53: 1 | D53: 40
A54: 607037 | B54: H. A. GOLFITO | C54: 1 | D54: 25
A55: 608045 | B55: H.A. COTO BRUS | C55: 1 | D55: 34
A56: 610030 | B56: H.A. NEILY | C56: 1 | D56: 41
D57: 0
B58: LIMÓN | C58: =SUM(C59:C61) -> 3 | D58: =SUM(D59:D61) -> 86
A59: 701038 | B59: H.A. VÍCTOR CASCO TORRES | C59: 1 | D59: 32
A60: 702037 | B60: H.A. GUÁPILES | C60: 1 | D60: 37
A61: 704021 | B61: H.A. SANTA LUISA | C61: 1 | D61: 17
A64: Fuente: Sección Padrón Electoral, Contraloría Electoral y Programa Electoral: Equipación de condiciones para el ejercicio del voto

Sheet 13
A2: CUADRO 13
A3: COSTA RICA: JUNTAS RECEPTORAS Y ELECTORADO EN ZONAS INDÍGENAS, SEGÚN PROVINCIA
A4: Y DISTRITO ELECTORAL, ELECCIONES 2 DE FEBRERO DE 2014
A6: CÓDIGO ELECTORAL | B6: PROVINCIA Y DISTRITO ELECTORAL | C6: NÚMERO DE JUNTAS | D6: ELECTORADO
B8: COSTA RICA | C8: =+C10+C16+C21+C34+C38+C79 -> 106 | D8: =+D10+D16+D21+D34+D38+D79 -> 35041
B10: SAN JOSÉ | C10: =SUM(C11:C14) -> 5 | D10: =SUM(D11:D14) -> 1499
A11: 104024 | B11: ZAPATÓN (SAN CARLOS) | C11: 1 | D11: 328
A12: 104044 | B12: BAJO REY | C12: 1 | D12: 45
A13: 107014 | B13: QUITIRRISI | C13: 2 | D13: 851
A14: 119069 | B14: CHINA KICHA | C14: 1 | D14: 275
B16: ALAJUELA | C16: =SUM(C17:C19) -> 3 | D16: =SUM(D17:D19) -> 858
A17: 215003 | B17: MARGARITA | C17: 1 | D17: 230
A18: 215008 | B18: PATASTE | C18: 1 | D18: 307
A19: 215010 | B19: TONJIBE | C19: 1 | D19: 321
B21: CARTAGO | C21: =SUM(C22:C32) -> 12 | D21: =SUM(D22:D32) -> 2829
A22: 305017 | B22: GRANO DE ORO O XARA | C22: 2 | D22: 668
A23: 305057 | B23: SIMIRIÑAC (JACUY) | C23: 1 | D23: 249
A24: 305058 | B24: DUCLAC (ALTO PACUARE) | C24: 1 | D24: 156
A25: 305059 | B25: JAKI (CAPILLA DOS CHIRRIPO ARRIBA) | C25: 1 | D25: 295
A26: 305060 | B26: BOLORI-ÑAC (CAPILLA UNO) | C26: 1 | D26: 254
A27: 305061 | B27: NIMARI-ÑAC (RIO PEJE) | C27: 1 | D27: 215
A28: 305062 | B28: NAMALDI | C28: 1 | D28: 99
A29: 305063 | B29: TSIPIRI (QUEBRADA PLATANILLO) | C29: 1 | D29: 411
A30: 305073 | B30: QUETZAL | C30: 1 | D30: 256
A31: 305075 | B31: JAMÖ (SITIO HILDA PARTE OESTE) | C31: 1 | D31: 62
A32: 305076 | B32: JAKUI | C32: 1 | D32: 164
B34: GUANACASTE | C34: =SUM(C35:C36) -> 2 | D34: =SUM(D35:D36) -> 753
A35: 502080 | B35: MATAMBUGUITO | C35: 1 | D35: 167
A36: 511011 | B36: MATAMBU | C36: 1 | D36: 586
B38: PUNTARENAS | C38: =SUM(C39:C77) -> 45 | D38: =SUM(D39:D77) -> 13256
A39: 603003 | B39: SALITRE | C39: 1 | D39: 361
A40: 603006 | B40: BORUCA | C40: 2 | D40: 1120
A41: 603007 | B41: LAS PILAS | C41: 1 | D41: 129
A42: 603008 | B42: COLINAS | C42: 1 | D42: 345
A43: 603011 | B43: CURRE | C43: 1 | D43: 350
A44: 603014 | B44: UJARRAS | C44: 2 | D44: 776
A45: 603019 | B45: BAJO LAS BRISAS | C45: 2 | D45: 696
A46: 603022 | B46: TÉRRABA | C46: 1 | D46: 511
A47: 603023 | B47: SAN RAFAEL DE CABAGRA | C47: 2 | D47: 686
A48: 603024 | B48: PASO REAL | C48: 1 | D48: 51
A49: 603027 | B49: BIJAGUAL | C49: 1 | D49: 457
A50: 603028 | B50: CAJÓN | C50: 1 | D50: 251
A51: 603029 | B51: GUAGARAL | C51: 1 | D51: 227
A52: 603030 | B52: MAIZ DE BORUCA | C52: 1 | D52: 364
A53: 603031 | B53: CHÁNGUENA | C53: 1 | D53: 258
A54: 603032 | B54: PILÓN | C54: 1 | D54: 430
A55: 603033 | B55: LAS VEGAS DE RIO CHANGUENA | C55: 1 | D55: 88
A56: 603034 | B56: LA BONGA | C56: 1 | D56: 257
A57: 603035 | B57: SAN VICENTE | C57: 1 | D57: 125
A58: 603036 | B58: PARAÍSO | C58: 1 | D58: 202
A59: 603041 | B59: PUENTE DE SALITRE | C59: 1 | D59: 305
A60: 603042 | B60: SAN ANTONIO | C60: 1 | D60: 283
A61: 603051 | B61: SHAMBA | C61: 1 | D61: 191
A62: 603052 | B62: CAÑO BRAVO | C62: 1 | D62: 110
A63: 605035 | B63: EL PROGRESO | C63: 1 | D63: 111
A64: 605038 | B64: ALTO LAGUNA | C64: 1 | D64: 165
A65: 607021 | B65: LA PEÑA DE BURICA | C65: 1 | D65: 191
A66: 607024 | B66: GUAYMI DE BORUCA | C66: 1 | D66: 182
A67: 607025 | B67: ALTO CONTE (MOLO DUBTDO) | C67: 1 | D67: 247
A68: 607027 | B68: PROGRESO DE CONTEBURICA | C68: 1 | D68: 170
A69: 608016 | B69: SAN GERARDO | C69: 1 | D69: 131
A70: 608042 | B70: LA CASONA (GUAYMI) | C70: 2 | D70: 827
A71: 610003 | B71: BAJO LOS INDIOS | C71: 1 | D71: 218
A72: 610006 | B72: ABROJO NORTE | C72: 1 | D72: 558
A73: 610012 | B73: BARRIO NUEVO DE VERACRUZ | C73: 2 | D73: 678
A74: 610020 | B74: CARACOL DE LA VACA | C74: 1 | D74: 419
A75: 610021 | B75: VEREH | C75: 1 | D75: 394
A76: 610026 | B76: VEGAS DE RIO LA VACA (NIBIRIBOTDA) | C76: 1 | D76: 140
A77: 610027 | B77: ABROJO MONTEZUMA | C77: 1 | D77: 252
B79: LIMÓN | C79: =SUM(C80:C104) -> 39 | D79: =SUM(D80:D104) -> 15846
A80: 701009 | B80: VESTA | C80: 1 | D80: 561
A81: 701021 | B81: BOCUARE | C81: 1 | D81: 230
A82: 701034 | B82: ALTO CWEN | C82: 1 | D82: 342
A83: 701035 | B83: XIQUIARI | C83: 1 | D83: 511
A84: 701036 | B84: SINOLI | C84: 1 | D84: 149
A85: 701040 | B85: CONCEPCIÓN | C85: 1 | D85: 494
A86: 701042 | B86: ALMIRANTE | C86: 1 | D86: 259
A87: 701043 | B87: GAVILÁN (SHICALARBATA) | C87: 1 | D87: 458
A88: 701044 | B88: JAKÜE (SITIO HILDA PARTE ESTE) | C88: 1 | D88: 40
A89: 703004 | B89: PACUARITO | C89: 2 | D89: 677
A90: 703033 | B90: ALTO LAS BRISAS DE PACUARITO | C90: 1 | D90: 113
A91: 704001 | B91: BRATSI (BAMBU O DON DIEGO) | C91: 1 | D91: 411
A92: 704002 | B92: AMUBRI | C92: 3 | D92: 1750
A93: 704003 | B93: COROMA (COLOGCHA) | C93: 1 | D93: 336
A94: 704006 | B94: PUERTO VIEJO | C94: 3 | D94: 1250
A95: 704007 | B95: BRIBRI (FIELDS) | C95: 5 | D95: 2565
A96: 704008 | B96: SHIROLES (XIROLES) | C96: 3 | D96: 1668
A97: 704012 | B97: HOME CREEK | C97: 3 | D97: 1529
A98: 704013 | B98: KATSI | C98: 1 | D98: 575
A99: 704015 | B99: SEPEQUE | C99: 2 | D99: 906
A100: 704019 | B100: SIBUJU | C100: 1 | D100: 269
A101: 704020 | B101: TELIRE (BLEY) | C101: 1 | D101: 192
A102: 704022 | B102: YORKIN | C102: 1 | D102: 182
A103: 704023 | B103: JAKCATACLA (MESA DE PIEDRA) | C103: 1 | D103: 158
A104: 705017 | B104: PALMERA (CASTSAQIBI) | C104: 1 | D104: 221
A107: Fuente: Sección Padrón Electoral, Programa Electoral: Equipación de condiciones para el ejercicio del voto

Sheet 14
A2: CUADRO 14
A3: COSTA RICA: PARTIDOS POLÍTICOS QUE PARTICIPAN EN LAS ELECCIONES
A4: SEGÚN ESCALA, ELECCIONES 2 DE FEBRERO 2014
A6: NOMBRE | B6: DIVISA
A8: ESCALA NACIONAL
A10: ACCESIBILIDAD SIN EXCLUSIÓN
A11: ACCIÓN CIUDADANA
A12: ALIANZA PATRÓTICA 1/
A13: AVANCE NACIONAL
A14: FRENTE AMPLIO
A15: INTEGRACIÓN NACIONAL
A16: LIBERACIÓN NACIONAL
A17: MOVIMIENTO LIBERTARIO
A18: NUEVA GENERACIÓN
A19: PATRIA NUEVA
A20: PARTIDO DE LOS TRABAJADORES
A21: RENOVACIÓN COSTARRICENSE
A22: RESTAURACIÓN NACIONAL
A23: UNIDAD SOCIAL CRISTIANA
A25: ESCALA PROVINCIAL
A27: ALIANZA DEMÓCRATA CRISTIANA
A28: DE LOS TRANSPORTISTAS
A29: NUEVO PARTIDO SOCIALISTA
A30: PATRIA, IGUALDAD Y DEMOCRACIA
A31: PATRIA, IGUALDAD Y DEMOCRACIA PUNTARENAS
A32: VERDE
A33: VIVA PUNTARENAS
A36: 1/ El partido solo postula candidaturas a diputaciones, cuatro en San José y tres en Alajuela.
A38: Fuente: Tribunal Supremo de Elecciones.

Sheet 15
A2: CUADRO 15
A3: COSTA RICA: MONTO PRESUPUESTADO POR EL TRIBUNAL SUPREMO DE ELECCIONES
A4: PARA LAS ELECCIONES GENERALES DE 2014, SEGÚN AÑO
A5: (MONTOS EN COLONES)
A7: AÑO | B7: MONTO PRESUPUESTADO
A10: TOTAL | B10: =+B13+B149+B12 -> 6450936000
A12: 2012 | B12: 2300000000
A13: 2013 | B13: 4150936000
A14: 2014 1/ | B14: 4349539000
A17: 1/ Para la eventualidad de tener que organizar una segunda vuelta de la elección presidencial se presupuestaron adicionalmente ¢ 2 373 548 100.
A19: Fuente: Dirección Ejecutiva del Tribunal Supremo de Elecciones.

Sheet 16
A2: CUADRO 16
A3: COSTA RICA: DONACIONES REPORTADAS PARA EL PROCESO ELECTORAL 2010-2014 1/
A4: SEGÚN PARTIDO POLÍTICO, AL 30 DE NOVIEMBRE DE 2013
A6: PARTIDO POLÍTICO | B6: MONTO EN COLONES | C6: PORCENTAJE
A9: TOTAL | B9: =SUM(B11:B50) -> 1369814085 | C9: =SUM(C11:C50) -> 100
A11: ACCESIBILIDAD SIN EXCLUSIÓN | B11: 7670000 | C11: =+B11/$B$9*100 -> 0.5599299997
A12: ACCIÓN CANTONAL SIQUIRRES INDEPENDIENTE | B12: 616000 | C12: =+B12/$B$9*100 -> 0.04496960623
A13: ACCIÓN CIUDADANA | B13: 108125493.6 | C13: 7.893442972
A14: ACCIÓN NARANJEÑA | B14: 48000 | C14: 0.003504125161
A15: ACCIÓN QUEPEÑA | B15: 220000 | C15: 0.01606057365
A16: ACUERDO CANTONAL DESAMPARADEÑO | B16: 4263500 | C16: 0.3112466172
A17: ALIANZA PATRIOTICA | B17: 125000 | C17: 0.00912532594
A18: ALIANZA ZARCEREÑA | B18: 50000 | C18: 0.003650130376
A19: AUTÓNOMO OROMONTANO | B19: 795000 | C19: 0.05803707298
A20: BARVA UNIDA (COALICIÓN) | B20: 500000 | C20: 0.03650130376
A21: CARTAGO UNIDO (COALICIÓN) | B21: 2022000 | C21: 0.1476112724
A22: CÍVICO TIBÁS FUENTEOVEJUNA | B22: 370000 | C22: 0.02701096478
A23: CURRIDABAT SIGLO XXI | B23: 2816050 | C23: 0.2055789929
A24: DE LOS TRANSPORTISTAS | B24: 1275000 | C24: 0.09307832459
A25: DEL SOL | B25: 8142809.35 | C25: 0.5944463151
A26: EL PUENTE Y LOS CAMINOS DE MORA | B26: 2283140 | C26: 0.1666751733
A27: FRENTE AMPLIO | B27: 159366282.7 | C27: 11.63415418
A28: GOICOCHEA EN ACCIÓN | B28: 1426000 | C28: 0.1041017183
A29: INDEPENDIENTE BELEMITA | B29: 2987000 | C29: 0.2180587887
A30: INTEGRACIÓN BARBAREÑA | B30: 707222.45 | C30: 0.05162908295
A31: INTEGRACIÓN NACIONAL | B31: 59320000 | C31: 4.330514678
A32: LIBERACIÓN NACIONAL | B32: 344855199.8 | C32: 25.1753288
A33: MONTES DE OCA UNIDA (COALICIÓN) | B33: 864000 | C33: 0.0630742529
A34: MOVIMIENTO AVANCE SANTO DOMINGO | B34: 9276818.4 | C34: 0.6772319327
A35: MOVIMIENTO DE TRABAJADORES Y CAMPESINOS | B35: 2608584.05 | C35: 0.1904334376
A36: MOVIMIENTO LIBERTARIO | B36: 264676440.8 | C36: 19.32207033
A37: NUEVA GENERACIÓN | B37: 3282066.75 | C37: 0.2395994308
A38: ORGANIZACIÓN LABORISTA DE AGUIRRE | B38: 367000 | C38: 0.02679195696
A39: PATRIA NUEVA | B39: 2978000 | C39: 0.2174017652
A40: RAMONENSE (COALICIÓN) | B40: 30000 | C40: 0.002190078226
A41: RENOVACIÓN COSTARRICENSE | B41: 46175245 | C41: 3.370913288
A42: RENOVEMOS ALAJUELA | B42: 677000 | C42: 0.04942276529
A43: RESTAURACIÓN NACIONAL | B43: 19574560 | C43: 1.428993921
A44: ÚNICO ABANGAREÑO | B44: 100000 | C44: 0.007300260752
A45: UNIDAD SOCIAL CRISTIANA | B45: 289018364.1 | C45: 21.0990942
A46: UNIDOS POR SAN CARLOS (COALICIÓN) | B46: 1719000 | C46: 0.1254914823
A47: UNIÓN ATENIENSE | B47: 165000 | C47: 0.01204543024
A48: UNIÓN PALMAREÑA | B48: 1509427.77 | C48: 0.1101921631
A49: VERDE | B49: 1050000 | C49: 0.0766527379
A50: YUNTA PROGRESISTA ESCAZUCEÑA | B50: 17758880 | C50: 1.296444547
A53: 1/ Donaciones recibidas, reportadas por los partidos políticos a partir del mes de abril de 2006, a la fecha de cierre de este
A54: boletín se encontraba en proceso de depuración las contribuciones del PLN, de igual forma se han enviado prevenciones
A55: al PAC,PUSC,PLN y ML, por inconsistencia en algunos de los reportes presentados.
A57: Nota: El detalle de los contribuyentes se puede consultar en www.tse.go.cr
A59: Fuente: Departamento de Financiamiento de Partidos Políticos del Tribunal Supremo de Elecciones.

Sheet 17
A1: CUADRO 17
A3: COSTA RICA: DONACIONES REPORTADAS PARA EL PROCESO ELECTORAL 2010-20141/
A4: POR TIPO DE PERSONA 2/, SEGÚN AÑO, DEL 1° DE MARZO 2010 AL 30 DE NOVIEMBRE DE 2013
A5: AL 30 DE NOVIEMBRE DE 2013
A7: AÑO | B7: TOTAL | C7: FÍSICA | D7: EXTRANJERA 3/
A9: TOTAL | B9: =B10+B11+B12+B13 -> 1369814085 | C9: 1369763775 | D9: 50310
A10: 2010 | B10: =+C10+D10 -> 519542172.6 | C10: 519491862.6 | D10: 50310
A11: 2011 | B11: =+C11+D11 -> 164479928.1 | C11: 164479928.1 | D11: 0
A12: 2012 | B12: =+C12+D12 -> 183358518.6 | C12: 183358518.6 | D12: 0
A13: 2013 | B13: =+C13+D13 -> 502433465.4 | C13: 502433465.4 | D13: 0
A16: 1/ Donaciones recibidas, reportadas por los partidos políticos a partir del mes de marzo de 2010.
A18: 2/ De acuerdo con los artículos 128 y 129 del Código Electoral, publicado el 2 de setiembre en el Diario Oficial La Gaceta que se prohibe la contribución de extranjeros, personas jurídicas y depositadas fuera del país.
A21: 3/ En proceso de emisión documento sobre estudio realizado.
A23: Nota: El detalle de los contribuyentes se puede consultar en www.tse.go.cr
A25: Fuente: Departamento de Financiamiento de Partidos Políticos del Tribunal Supremo de Elecciones.

Sheet 18
A2: CUADRO 18
A3: COSTA RICA: FISCALIZACIÓN DE LOS PARTIDOS POLÍTICOS, POR AÑO
A4: SEGÚN TIPO DE FISCALIZACIÓN 1/, AL 31 DE DICIEMBRE DE 2013
A6: TIPO DE FISCALIZACIÓN | B6: TOTAL | C6: 2010 | D6: 2011 3/ | E6: 2012 4/ | F6: 2013 5/
A8: TOTAL | B8: =SUM(B9:B13) -> 167 | C8: =SUM(C9:C13) -> 10 | D8: 43 | E8: 55 | F8: 62
A9: AUDITORÍA | F9: 3
A10: ANÁLISIS DE LIQUIDACIONES 2/ | B10: =SUM(C10:F10) -> 70 | C10: 10 | D10: 37 | E10: 0 | F10: 23
A11: DENUNCIAS | B11: =SUM(C11:F11) -> 51 | C11: 0 | D11: 4 | E11: 37 | F11: 10
A12: ESTUDIOS ESPECIALES | B12: 25 | C12: 0 | D12: 2 | E12: 2 | F12: 21
A13: ESTUDIOS DE ASESORÍA | B13: 21 | C13: 0 | D13: 0 | E13: 16 | F13: 5
A16: 1/ Los tipos de fiscalización que realiza el Departamento de Financiamiento de Partidos Políticos, responden a las atribuciones funcionales establecidas en el Código Electoral y el Reglamento sobre el Financiamiento de los Partidos Polítcos.
A18: 2/ En análisis de liquidaciones, se muestran los datos correspondientes a los informes emitidos. En algunas liquidaciones se emitieron dos infomes por liquidación y en otros casos en un informe se resolvió sobre varias liquidaciones de un mismo partido.
A20: 3/ El análisis de liquidaciones contempla la emisión de 1 informe de liquidación presidencial, 11 trimestrales y 25 municipales.
A22: 4/ El análisis de liquidaciones contempla la emisión de 29 informes de liquidaciones trimestrales y 8 municipales.
A24: 5/ El análisis de liquidaciones contempla la emisión de informes de liquidaciones trimestrales.
A26: Fuente: Departamento de Financiamiento de Partidos Políticos del Tribunal Supremo de Elecciones.

Sheet 19
A2: CUADRO 19
A3: COSTA RICA: CANDIDATURAS INSCRITAS A PRESIDENCIA Y VICEPRESIDENCIAS, POR SEXO
A4: SEGÚN GRUPOS DE EDAD, ELECCIONES 2 DE FEBRERO DE 2014
A6: GRUPOS DE EDAD | B6: TOTAL | E6: PRESIDENCIA | H6: 1º VICEPRESIDENCIA | K6: 2º VICEPRESIDENCIA
B7: TOTAL | C7: HOMBRES | D7: MUJERES | E7: TOTAL | F7: HOMBRES | G7: MUJERES | H7: TOTAL | I7: HOMBRES | J7: MUJERES | K7: TOTAL | L7: HOMBRES | M7: MUJERES
A9: TOTAL | B9: =SUM(B11:B21) -> 39 | C9: =SUM(C11:C21) -> 26 | D9: =SUM(D11:D21) -> 13 | E9: =SUM(E11:E21) -> 13 | F9: =SUM(F11:F21) -> 13 | G9: 0 | H9: 13 | I9: 4 | J9: 9 | K9: 13 | L9: 9 | M9: 4
A11: 30 - 34 | B11: 3 | C11: 2 | D11: 1 | E11: 0 | F11: 0 | G11: 0 | H11: 1 | I11: 0 | J11: 1 | K11: 2 | L11: 2 | M11: 0
A12: 35 - 39 | B12: 3 | C12: 3 | D12: 0 | E12: 2 | F12: 2 | G12: 0 | H12: 0 | I12: 0 | J12: 0 | K12: 1 | L12: 1 | M12: 0
A13: 40 - 44 | B13: 2 | C13: 2 | D13: 0 | E13: 1 | F13: 1 | G13: 0 | H13: 0 | I13: 0 | J13: 0 | K13: 1 | L13: 1 | M13: 0
A14: 45 - 49 | B14: 3 | C14: 1 | D14: 2 | E14: 1 | F14: 1 | G14: 0 | H14: 1 | I14: 0 | J14: 1 | K14: 1 | L14: 0 | M14: 1
A15: 50 - 54 | B15: 3 | C15: 1 | D15: 2 | E15: 1 | F15: 1 | G15: 0 | H15: 0 | I15: 0 | J15: 0 | K15: 2 | L15: 0 | M15: 2
A16: 55 - 59 | B16: 10 | C16: 5 | D16: 5 | E16: 5 | F16: 5 | G16: 0 | H16: 4 | I16: 0 | J16: 4 | K16: 1 | L16: 0 | M16: 1
A17: 60 - 64 | B17: 6 | C17: 5 | D17: 1 | E17: 2 | F17: 2 | G17: 0 | H17: 2 | I17: 1 | J17: 1 | K17: 2 | L17: 2 | M17: 0
A18: 65 - 69 | B18: 4 | C18: 2 | D18: 2 | E18: 0 | F18: 0 | G18: 0 | H18: 4 | I18: 2 | J18: 2 | K18: 0 | L18: 0 | M18: 0
A19: 70 - 74 | B19: 3 | C19: 3 | D19: 0 | E19: 0 | F19: 0 | G19: 0 | H19: 1 | I19: 1 | J19: 0 | K19: 2 | L19: 2 | M19: 0
A20: 75 - 79 | B20: 1 | C20: 1 | D20: 0 | E20: 1 | F20: 1 | G20: 0 | H20: 0 | I20: 0 | J20: 0 | K20: 0 | L20: 0 | M20: 0
A21: 80 - 84 | B21: 1 | C21: 1 | D21: 0 | E21: 0 | F21: 0 | G21: 0 | H21: 0 | I21: 0 | J21: 0 | K21: 1 | L21: 1 | M21: 0
A24: Fuente: Departamento de Registro de Partidos Políticos del Tribunal Supremo de Elecciones.

Sheet 20
A2: CUADRO 20
A4: COSTA RICA: CANDIDATURAS INSCRITAS A DIPUTACIONES EN PROPIEDAD Y SUPLENCIA, POR SEXO
A5: SEGÚN GRUPOS DE EDAD, ELECCIONES 2 DE FEBRERO 2014
A7: GRUPOS DE EDAD | B7: DIPUTACIONES | E7: EN PROPIEDAD | H7: EN SUPLENCIA
B8: TOTAL | C8: HOMBRES | D8: MUJERES | E8: TOTAL | F8: HOMBRES | G8: MUJERES | H8: TOTAL | I8: HOMBRES | J8: MUJERES
A10: TOTAL | B10: =SUM(B11:B24) -> 1052 | C10: =SUM(C11:C24) -> 544 | D10: 508 | E10: 806 | F10: 423 | G10: 383 | H10: 246 | I10: 121 | J10: 125
A11: 18 - 24 | B11: 91 | C11: 32 | D11: 59 | E11: 69 | F11: 24 | G11: 45 | H11: 22 | I11: 8 | J11: 14
A12: 25 - 29 | B12: 99 | C12: 43 | D12: 56 | E12: 78 | F12: 36 | G12: 42 | H12: 21 | I12: 7 | J12: 14
A13: 30 - 34 | B13: 103 | C13: 50 | D13: 53 | E13: 81 | F13: 38 | G13: 43 | H13: 22 | I13: 12 | J13: 10
A14: 35 - 39 | B14: 116 | C14: 55 | D14: 61 | E14: 88 | F14: 44 | G14: 44 | H14: 28 | I14: 11 | J14: 17
A15: 40 - 44 | B15: 113 | C15: 62 | D15: 51 | E15: 90 | F15: 53 | G15: 37 | H15: 23 | I15: 9 | J15: 14
A16: 45 - 49 | B16: 96 | C16: 49 | D16: 47 | E16: 74 | F16: 43 | G16: 31 | H16: 22 | I16: 6 | J16: 16
A17: 50 - 54 | B17: 137 | C17: 74 | D17: 63 | E17: 98 | F17: 50 | G17: 48 | H17: 39 | I17: 24 | J17: 15
A18: 55 - 59 | B18: 140 | C18: 74 | D18: 66 | E18: 112 | F18: 61 | G18: 51 | H18: 28 | I18: 13 | J18: 15
A19: 60 - 64 | B19: 93 | C19: 62 | D19: 31 | E19: 74 | F19: 47 | G19: 27 | H19: 19 | I19: 15 | J19: 4
A20: 65 - 69 | B20: 31 | C20: 20 | D20: 11 | E20: 20 | F20: 11 | G20: 9 | H20: 11 | I20: 9 | J20: 2
A21: 70 - 74 | B21: 21 | C21: 14 | D21: 7 | E21: 13 | F21: 9 | G21: 4 | H21: 8 | I21: 5 | J21: 3
A22: 75 - 79 | B22: 10 | C22: 8 | D22: 2 | E22: 7 | F22: 6 | G22: 1 | H22: 3 | I22: 2 | J22: 1
A23: 80 - 84 | B23: 1 | C23: 0 | D23: 1 | E23: 1 | F23: 0 | G23: 1 | H23: 0 | I23: 0 | J23: 0
A24: 85 Y MÁS | B24: 1 | C24: 1 | D24: 0 | E24: 1 | F24: 1 | G24: 0 | H24: 0 | I24: 0 | J24: 0
A27: Fuente: Departamento de Registro de Partidos Políticos del Tribunal Supremo de Elecciones.
L32: HOMBRES | M32: MUJERES
L34: 32 | M34: -59 | N34: 18 - 24 | O34: 18 - 24
L35: 43 | M35: -56 | N35: 25 - 29 | O35: 25 - 29
L36: 50 | M36: -53 | N36: 30 - 34 | O36: 30 - 34
L37: 55 | M37: -61 | N37: 35 - 39 | O37: 35 - 39
L38: 62 | M38: -51 | N38: 40 - 44 | O38: 40 - 44
L39: 49 | M39: -47 | N39: 45 - 49 | O39: 45 - 49
L40: 74 | M40: -63 | N40: 50 - 54 | O40: 50 - 54
L41: 74 | M41: -66 | N41: 55 - 59 | O41: 55 - 59
L42: 62 | M42: -31 | N42: 60 - 64 | O42: 60 - 64
L43: 20 | M43: -11 | N43: 65 - 69 | O43: 65 - 69
L44: 14 | M44: -7 | N44: 70 - 74 | O44: 70 - 74
L45: 8 | M45: -2 | N45: 75 - 79 | O45: 75 - 79
L46: 0 | M46: -1 | N46: 80 - 84 | O46: 80 - 84
L47: 1 | M47: 0 | N47: 85 Y MÁS | O47: 85 Y MÁS

Sheet G3
A2: CUADRO 20
A4: COSTA RICA: CANDIDATURAS INSCRITAS A DIPUTACIONES EN PROPIEDAD Y SUPLENCIA, POR SEXO
A5: SEGÚN GRUPOS DE EDAD, ELECCIONES 2 DE FEBRERO 2014
A7: GRUPOS DE EDAD | B7: DIPUTACIONES | E7: EN PROPIEDAD | H7: EN SUPLENCIA
B8: TOTAL | C8: HOMBRES | D8: MUJERES | E8: TOTAL | F8: HOMBRES | G8: MUJERES | H8: TOTAL | I8: HOMBRES | J8: MUJERES
A10: TOTAL | B10: =SUM(B11:B24) -> 1052 | C10: =SUM(C11:C24) -> 544 | D10: 508 | E10: 806 | F10: 423 | G10: 383 | H10: 246 | I10: 121 | J10: 125
A11: 18 - 24 | B11: 91 | C11: 32 | D11: 59 | E11: 69 | F11: 24 | G11: 45 | H11: 22 | I11: 8 | J11: 14
A12: 25 - 29 | B12: 99 | C12: 43 | D12: 56 | E12: 78 | F12: 36 | G12: 42 | H12: 21 | I12: 7 | J12: 14
A13: 30 - 34 | B13: 103 | C13: 50 | D13: 53 | E13: 81 | F13: 38 | G13: 43 | H13: 22 | I13: 12 | J13: 10
A14: 35 - 39 | B14: 116 | C14: 55 | D14: 61 | E14: 88 | F14: 44 | G14: 44 | H14: 28 | I14: 11 | J14: 17
A15: 40 - 44 | B15: 113 | C15: 62 | D15: 51 | E15: 90 | F15: 53 | G15: 37 | H15: 23 | I15: 9 | J15: 14
A16: 45 - 49 | B16: 96 | C16: 49 | D16: 47 | E16: 74 | F16: 43 | G16: 31 | H16: 22 | I16: 6 | J16: 16
A17: 50 - 54 | B17: 137 | C17: 74 | D17: 63 | E17: 98 | F17: 50 | G17: 48 | H17: 39 | I17: 24 | J17: 15
A18: 55 - 59 | B18: 140 | C18: 74 | D18: 66 | E18: 112 | F18: 61 | G18: 51 | H18: 28 | I18: 13 | J18: 15
A19: 60 - 64 | B19: 93 | C19: 62 | D19: 31 | E19: 74 | F19: 47 | G19: 27 | H19: 19 | I19: 15 | J19: 4
A20: 65 - 69 | B20: 31 | C20: 20 | D20: 11 | E20: 20 | F20: 11 | G20: 9 | H20: 11 | I20: 9 | J20: 2
A21: 70 - 74 | B21: 21 | C21: 14 | D21: 7 | E21: 13 | F21: 9 | G21: 4 | H21: 8 | I21: 5 | J21: 3
A22: 75 - 79 | B22: 10 | C22: 8 | D22: 2 | E22: 7 | F22: 6 | G22: 1 | H22: 3 | I22: 2 | J22: 1
A23: 80 - 84 | B23: 1 | C23: 0 | D23: 1 | E23: 1 | F23: 0 | G23: 1 | H23: 0 | I23: 0 | J23: 0
A24: 85 Y MÁS | B24: 1 | C24: 1 | D24: 0 | E24: 1 | F24: 1 | G24: 0 | H24: 0 | I24: 0 | J24: 0
A27: Fuente: Departamento de Registro de Partidos Políticos del Tribunal Supremo de Elecciones.
L32: HOMBRES | M32: MUJERES
L34: 32 | M34: -59 | N34: 18 - 24 | O34: 18 - 24
L35: 43 | M35: -56 | N35: 25 - 29 | O35: 25 - 29
L36: 50 | M36: -53 | N36: 30 - 34 | O36: 30 - 34
L37: 55 | M37: -61 | N37: 35 - 39 | O37: 35 - 39
L38: 62 | M38: -51 | N38: 40 - 44 | O38: 40 - 44
L39: 49 | M39: -47 | N39: 45 - 49 | O39: 45 - 49
L40: 74 | M40: -63 | N40: 50 - 54 | O40: 50 - 54
L41: 74 | M41: -66 | N41: 55 - 59 | O41: 55 - 59
L42: 62 | M42: -31 | N42: 60 - 64 | O42: 60 - 64
L43: 20 | M43: -11 | N43: 65 - 69 | O43: 65 - 69
L44: 14 | M44: -7 | N44: 70 - 74 | O44: 70 - 74
L45: 8 | M45: -2 | N45: 75 - 79 | O45: 75 - 79
L46: 0 | M46: -1 | N46: 80 - 84 | O46: 80 - 84
L47: 1 | M47: 0 | N47: 85 Y MÁS | O47: 85 Y MÁS
A57: Fuente: Cuadro 20.

Sheet 21
A2: CUADRO 21
A3: COSTA RICA: EDAD PROMEDIO A FEBRERO DE LOS CANDIDATOS/AS INSCRITOS/AS A DIPUTACIONES EN PROPIEDAD Y SUPLENCIA
A4: POR SEXO, SEGÚN PARTIDO POLÍTICO, ELECCIONES 2 DE FEBRERO 2014
A6: PARTIDO POLÍTICO | B6: DIPUTACIONES | E6: EN PROPIEDAD | H6: EN SUPLENCIA
B7: TOTAL | C7: HOMBRES | D7: MUJERES | E7: TOTAL | F7: HOMBRES | G7: MUJERES | H7: TOTAL | I7: HOMBRES | J7: MUJERES
A9: TOTAL | B9: 44.66064639 | C9: 46.70772059 | D9: 42.46850394 | E9: 44.4764268 | F9: 46.23877069 | G9: 42.53002611 | H9: 45.26422764 | I9: 48.34710744 | J9: 42.28
A10: ACCESIBILIDAD SIN EXCLUSIÓN | B10: 47.01369863 | C10: 48.94285714 | D10: 45.23684211 | E10: 47.0877193 | F10: 48.53571429 | G10: 45.68965517 | H10: 46.75 | I10: 50.57142857 | J10: 43.77777778
A11: ACCIÓN CIUDADANA | B11: 47.84 | C11: 48.56756757 | D11: 47.13157895 | E11: 48.47368421 | F11: 47.31034483 | G11: 49.67857143 | H11: 45.83333333 | I11: 53.125 | J11: 40
A12: ALIANZA DEMÓCRATA CRISTITNA | B12: 45.55555556 | C12: 52 | D12: 37.5 | E12: 44.14285714 | F12: 49.5 | G12: 37 | H12: 50.5 | I12: 62 | J12: 39
A13: ALIANZA PATRIÓTICA | B13: 45.42857143 | C13: 43.25 | D13: 48.33333333 | E13: 45.42857143 | F13: 43.25 | G13: 48.33333333 | H13: 0 | I13: 0 | J13: 0
A14: AVANCE NACIONAL | B14: 47.08108108 | C14: 50 | D14: 43.64705882 | E14: 45.49122807 | F14: 48.83870968 | G14: 41.5 | H14: 52.41176471 | I14: 54 | J14: 50.625
A15: DE LOS TRABAJADORES | B15: 33.08108108 | C15: 36.15 | D15: 29.47058824 | E15: 33.54385965 | F15: 37.7 | G15: 28.92592593 | H15: 31.52941176 | I15: 31.5 | J15: 31.57142857
A16: DE LOS TRANSPORTISTAS | B16: 45.33333333 | C16: 51.76923077 | D16: 37.72727273 | E16: 42.57894737 | F16: 50.9 | G16: 33.33333333 | H16: 55.8 | I16: 54.66666667 | J16: 57.5
A17: FRENTE AMPLIO | B17: 45.32 | C17: 47.05128205 | D17: 43.44444444 | E17: 44.10526316 | F17: 44.33333333 | G17: 43.85185185 | H17: 49.16666667 | I17: 56.11111111 | J17: 42.22222222
A18: INTEGRACIÓN NACIONAL | B18: 48.34782609 | C18: 51.58823529 | D18: 45.2 | E18: 48.78846154 | F18: 51.73076923 | G18: 45.84615385 | H18: 47 | I18: 51.125 | J18: 43.33333333
A19: LIBERACIÓN NACIONAL | B19: 46.18666667 | C19: 46.24324324 | D19: 46.13157895 | E19: 46.21052632 | F19: 45.72413793 | G19: 46.71428571 | H19: 46.11111111 | I19: 48.125 | J19: 44.5
A20: MOVIMIENTO LIBERTARIO | B20: 42.25675676 | C20: 44.67567568 | D20: 39.83783784 | E20: 42.44642857 | F20: 45.06896552 | G20: 39.62962963 | H20: 41.66666667 | I20: 43.25 | J20: 40.4
A21: NUEVA GENERACIÓN | B21: 75 | C21: 1 | D21: 37 | E21: 0.4933333333 | F21: 38 | G21: 0.5066666667 | H21: 57 | I21: 1 | J21: 28
A22: NUEVO PARTIDO SOCIALISTA | B22: 25.75 | C22: 26.75 | D22: 24.75 | E22: 26.33333333 | F22: 27.66666667 | G22: 25 | H22: 24 | I22: 24 | J22: 24
A23: PATRIA NUEVA | B23: 48.53623188 | C23: 52.13157895 | D23: 44.12903226 | E23: 46.35185185 | F23: 49.96551724 | G23: 42.16 | H23: 56.4 | I23: 59.11111111 | J23: 52.33333333
A24: PATRIA, IGUALDAD Y DEMOCRACIA | B24: 47 | C24: 50.41666667 | D24: 43.58333333 | E24: 47.84210526 | F24: 52.1 | G24: 43.11111111 | H24: 43.8 | I24: 42 | J24: 45
A25: PATRIA, IGUALDAD Y DEMOCRACIA DE PUNTARENAS | B25: 47.14285714 | C25: 47.5 | D25: 46.66666667 | E25: 49.2 | F25: 49 | G25: 49.5 | H25: 42 | I25: 43 | J25: 41
A26: RENOVACIÓN COSTARRICENSE | B26: 49.25333333 | C26: 52.38461538 | D26: 45.86111111 | E26: 48.47368421 | F26: 51.25806452 | G26: 45.15384615 | H26: 51.72222222 | I26: 56.75 | J26: 47.7
A27: RESTAURACIÓN NACIONAL | B27: 42.40540541 | C27: 42.46153846 | D27: 42.34285714 | E27: 42.96428571 | F27: 41.8 | G27: 44.30769231 | H27: 40.66666667 | I27: 44.66666667 | J27: 36.66666667
A28: UNIDAD SOCIAL CRISTIANA | B28: 46.4 | C28: 48.45 | D28: 44.05714286 | E28: 47.31578947 | F28: 48.64516129 | G28: 45.73076923 | H28: 43.5 | I28: 47.77777778 | J28: 39.22222222
A29: VERDE | B29: 44.44444444 | C29: 51.2 | D29: 36 | E29: 46.71428571 | F29: 55.25 | G29: 35.33333333 | H29: 36.5 | I29: 35 | J29: 38
A30: VIVA PUNTARENAS | B30: 44.28571429 | C30: 46 | D30: 42 | E30: 44.2 | F30: 44 | G30: 44.5 | H30: 44.5 | I30: 52 | J30: 37
A33: Fuente: Departamento de Registro de Partidos Políticos del Tribunal Supremo de Elecciones.

Sheet 22
A2: CUADRO 22
A3: COSTA RICA: CANDIDATURAS INSCRITAS A DIPUTACIONES
A4: POR AÑO DE ELECCIÓN, SEGÚN PROVINCIA
A5: ELECCIONES 2006, 2010 Y 2014
A7: PROVINCIA | B7: 2006 | C7: 2010 | D7: 2014
A9: COSTA RICA | B9: 1167 | C9: =SUM(C11:C17) -> 789 | D9: 1052
A11: SAN JOSÉ | B11: 425 | C11: 274 | D11: 356
A12: ALAJUELA | B12: 209 | C12: 153 | D12: 182
A13: CARTAGO | B13: 162 | C13: 106 | D13: 134
A14: HEREDIA | B14: 98 | C14: 70 | D14: 110
A15: GUANACASTE | B15: 84 | C15: 53 | D15: 75
A16: PUNTARENAS | B16: 91 | C16: 63 | D16: 105
A17: LIMÓN | B17: 98 | C17: 70 | D17: 90
A19: Fuente: Departamento de Registro de Partidos Políticos del Tribunal Supremo de Elecciones.

Sheet 23
A2: CUADRO 23
A3: COSTA RICA: COMPOSICIÓN DE LAS PAPELETAS, POR SEXO, SEGÚN
A4: TIPO DE CANDIDATURA, ELECCIONES 2 DE FEBRERO DE 2014
A5: (CIFRAS ABSOLUTAS Y RELATIVAS)
A7: CANDIDATURAS | B7: TOTAL | C7: HOMBRES | E7: MUJERES
C8: ABSOLUTO | D8: % | E8: ABSOLUTO | F8: %
A10: TOTAL | B10: 1091 | C10: 570 | D10: 52.2456462 | E10: 521 | F10: 47.7543538
A12: PRESIDENCIA | B12: 13 | C12: 13 | D12: 100 | E12: 0 | F12: 0
A13: PRIMERA VICEPRESIDENCIA | B13: 13 | C13: 4 | D13: 30.76923077 | E13: 9 | F13: 69.23076923
A14: SEGUNDA VICEPRESIDENCIA | B14: 13 | C14: 9 | D14: 69.23076923 | E14: 4 | F14: 30.76923077
A15: DIPUTACIONES | B15: 1052 | C15: 544 | D15: 51.71102662 | E15: 508 | F15: 48.28897338
A18: Fuente: Departamento de Registro de Partidos Políticos del Tribunal Supremo de Elecciones.

Sheet G4
I4: CANDIDATURAS | J4: HOMBRES | K4: MUJERES
I6: TOTAL | J6: =SUM(J8:J11) -> 570 | K6: =SUM(K8:K11) -> 521
I8: DIPUTACIONES | J8: ='23'!C15 -> 544 | K8: ='23'!E15 -> 508
I9: SEGUNDA VICEPRESIDENCIA | J9: ='23'!C14 -> 9 | K9: ='23'!E14 -> 4
I10: PRIMERA VICEPRESIDENCIA | J10: ='23'!C13 -> 4 | K10: ='23'!E13 -> 9
I11: PRESIDENCIA | J11: ='23'!C12 -> 13 | K11: ='23'!E12 -> 0
A25: Fuente: Cuadro 23.

Sheet 24
A2: CUADRO 24
A3: COSTA RICA: CANDIDATURAS A DIPUTACIONES EN PROPIEDAD Y SUPLENCIA, POR SEXO
A4: SEGÚN PARTIDO, ELECCIONES 2 DE FEBRERO DE 2014
A5: (CIFRAS ABSOLUTAS Y RELATIVAS)
A7: PARTIDO | B7: DIPUTACIONES | G7: EN PROPIEDAD | L7: EN SUPLENCIA
A8: PARTIDO POLITICO | B8: TOTAL | C8: HOMBRES | E8: MUJERES | G8: TOTAL | H8: HOMBRES | J8: MUJERES | L8: TOTAL | M8: HOMBRES | O8: MUJERES
B9: ABS | C9: ABS | D9: % | E9: ABS | F9: % | G9: ABS | H9: ABS | I9: % | J9: ABS | K9: % | L9: ABS | M9: ABS | N9: % | O9: ABS | P9: %
A11: TOTAL | B11: 1052 | C11: 544 | D11: 51.71102662 | E11: 508 | F11: 48.28897338 | G11: 806 | H11: 423 | I11: 52.48138958 | J11: 383 | K11: 47.51861042 | L11: 246 | M11: 121 | N11: 49.18699187 | O11: 125 | P11: 50.81300813
A12: ACCESIBILIDAD SIN EXCLUSIÓN | B12: 73 | C12: 35 | D12: 47.94520548 | E12: 38 | F12: 52.05479452 | G12: 57 | H12: 28 | I12: 49.12280702 | J12: 29 | K12: 50.87719298 | L12: 16 | M12: 7 | N12: 43.75 | O12: 9 | P12: 56.25
A13: ACCIÓN CIUDADANA | B13: 75 | C13: 37 | D13: 49.33333333 | E13: 38 | F13: 50.66666667 | G13: 57 | H13: 29 | I13: 50.87719298 | J13: 28 | K13: 49.12280702 | L13: 18 | M13: 8 | N13: 44.44444444 | O13: 10 | P13: 55.55555556
A14: ALIANZA DEMÓCRATA CRISTITNA | B14: 9 | C14: 5 | D14: 55.55555556 | E14: 4 | F14: 44.44444444 | G14: 7 | H14: 4 | I14: 57.14285714 | J14: 3 | K14: 42.85714286 | L14: 2 | M14: 1 | N14: 50 | O14: 1 | P14: 50
A15: ALIANZA PATRIÓTICA | B15: 7 | C15: 4 | D15: 57.14285714 | E15: 3 | F15: 42.85714286 | G15: 7 | H15: 4 | I15: 57.14285714 | J15: 3 | K15: 42.85714286 | L15: 0 | M15: 0 | N15: 0 | O15: 0 | P15: 0
A16: AVANCE NACIONAL | B16: 74 | C16: 40 | D16: 54.05405405 | E16: 34 | F16: 45.94594595 | G16: 57 | H16: 31 | I16: 54.38596491 | J16: 26 | K16: 45.61403509 | L16: 17 | M16: 9 | N16: 52.94117647 | O16: 8 | P16: 47.05882353
A17: DE LOS TRABAJADORES | B17: 74 | C17: 40 | D17: 54.05405405 | E17: 34 | F17: 45.94594595 | G17: 57 | H17: 30 | I17: 52.63157895 | J17: 27 | K17: 47.36842105 | L17: 17 | M17: 10 | N17: 58.82352941 | O17: 7 | P17: 41.17647059
A18: DE LOS TRANSPORTISTAS | B18: 24 | C18: 13 | D18: 54.16666667 | E18: 11 | F18: 45.83333333 | G18: 19 | H18: 10 | I18: 52.63157895 | J18: 9 | K18: 47.36842105 | L18: 5 | M18: 3 | N18: 60 | O18: 2 | P18: 40
A19: FRENTE AMPLIO | B19: 75 | C19: 39 | D19: 52 | E19: 36 | F19: 48 | G19: 57 | H19: 30 | I19: 52.63157895 | J19: 27 | K19: 47.36842105 | L19: 18 | M19: 9 | N19: 50 | O19: 9 | P19: 50
A20: INTEGRACIÓN NACIONAL | B20: 69 | C20: 34 | D20: 49.27536232 | E20: 35 | F20: 50.72463768 | G20: 52 | H20: 26 | I20: 50 | J20: 26 | K20: 50 | L20: 17 | M20: 8 | N20: 47.05882353 | O20: 9 | P20: 52.94117647
A21: LIBERACIÓN NACIONAL | B21: 75 | C21: 37 | D21: 49.33333333 | E21: 38 | F21: 50.66666667 | G21: 57 | H21: 29 | I21: 50.87719298 | J21: 28 | K21: 49.12280702 | L21: 18 | M21: 8 | N21: 44.44444444 | O21: 10 | P21: 55.55555556
A22: MOVIMIENTO LIBERTARIO | B22: 74 | C22: 37 | D22: 50 | E22: 37 | F22: 50 | G22: 56 | H22: 29 | I22: 51.78571429 | J22: 27 | K22: 48.21428571 | L22: 18 | M22: 8 | N22: 44.44444444 | O22: 10 | P22: 55.55555556
A23: NUEVA GENERACIÓN | B23: 75 | C23: 38 | D23: 50.66666667 | E23: 37 | F23: 49.33333333 | G23: 57 | H23: 29 | I23: 50.87719298 | J23: 28 | K23: 49.12280702 | L23: 18 | M23: 9 | N23: 50 | O23: 9 | P23: 50
A24: NUEVO PARTIDO SOCIALISTA | B24: 8 | C24: 4 | D24: 50 | E24: 4 | F24: 50 | G24: 6 | H24: 3 | I24: 50 | J24: 3 | K24: 50 | L24: 2 | M24: 1 | N24: 50 | O24: 1 | P24: 50
A25: PATRIA NUEVA | B25: 69 | C25: 38 | D25: 55.07246377 | E25: 31 | F25: 44.92753623 | G25: 54 | H25: 29 | I25: 53.7037037 | J25: 25 | K25: 46.2962963 | L25: 15 | M25: 9 | N25: 60 | O25: 6 | P25: 40
A26: PATRIA, IGUALDAD Y DEMOCRACIA | B26: 24 | C26: 12 | D26: 50 | E26: 12 | F26: 50 | G26: 19 | H26: 10 | I26: 52.63157895 | J26: 9 | K26: 47.36842105 | L26: 5 | M26: 2 | N26: 40 | O26: 3 | P26: 60
A27: PATRIA, IGUALDAD Y DEMOCRACIA DE PUNTARENAS | B27: 7 | C27: 4 | D27: 57.14285714 | E27: 3 | F27: 42.85714286 | G27: 5 | H27: 3 | I27: 60 | J27: 2 | K27: 40 | L27: 2 | M27: 1 | N27: 50 | O27: 1 | P27: 50
A28: RENOVACIÓN COSTARRICENSE | B28: 75 | C28: 39 | D28: 52 | E28: 36 | F28: 48 | G28: 57 | H28: 31 | I28: 54.38596491 | J28: 26 | K28: 45.61403509 | L28: 18 | M28: 8 | N28: 44.44444444 | O28: 10 | P28: 55.55555556
A29: RESTAURACIÓN NACIONAL | B29: 74 | C29: 39 | D29: 52.7027027 | E29: 35 | F29: 47.2972973 | G29: 56 | H29: 30 | I29: 53.57142857 | J29: 26 | K29: 46.42857143 | L29: 18 | M29: 9 | N29: 50 | O29: 9 | P29: 50
A30: UNIDAD SOCIAL CRISTIANA | B30: 75 | C30: 40 | D30: 53.33333333 | E30: 35 | F30: 46.66666667 | G30: 57 | H30: 31 | I30: 54.38596491 | J30: 26 | K30: 45.61403509 | L30: 18 | M30: 9 | N30: 50 | O30: 9 | P30: 50
A31: VERDE | B31: 9 | C31: 5 | D31: 55.55555556 | E31: 4 | F31: 44.44444444 | G31: 7 | H31: 4 | I31: 57.14285714 | J31: 3 | K31: 42.85714286 | L31: 2 | M31: 1 | N31: 50 | O31: 1 | P31: 50
A32: VIVA PUNTARENAS | B32: 7 | C32: 4 | D32: 57.14285714 | E32: 3 | F32: 42.85714286 | G32: 5 | H32: 3 | I32: 60 | J32: 2 | K32: 40 | L32: 2 | M32: 1 | N32: 50 | O32: 1 | P32: 50
A35: Fuente: Departamento de Registro de Partidos Políticos del Tribunal Supremo de Elecciones.

Sheet 25
A2: CUADRO 25
A3: COSTA RICA: CANDIDATURAS A DIPUTACIONES EN PROPIEDAD Y SUPLENCIA, POR SEXO
A4: SEGÚN PROVINCIA, ELECCIONES 2 DE FEBRERO DE 2014
A5: (CIFRAS ABSOLUTAS Y RELATIVAS)
A7: PROVINCIA | B7: TOTAL | C7: DIPUTACIONES
C8: HOMBRES | E8: MUJERES
C9: ABS | D9: % | E9: ABS | F9: %
A11: COSTA RICA | B11: 1052 | C11: 544 | D11: 51.71102662 | E11: 508 | F11: 48.28897338
A12: SAN JOSÉ | B12: 356 | C12: 181 | D12: 50.84269663 | E12: 175 | F12: 49.15730337
A13: ALAJUELA | B13: 182 | C13: 95 | D13: 52.1978022 | E13: 87 | F13: 47.8021978
A14: CARTAGO | B14: 134 | C14: 71 | D14: 52.98507463 | E14: 63 | F14: 47.01492537
A15: HEREDIA | B15: 110 | C15: 55 | D15: 50 | E15: 55 | F15: 50
A16: GUANACASTE | B16: 75 | C16: 38 | D16: 50.66666667 | E16: 37 | F16: 49.33333333
A17: PUNTARENAS | B17: 105 | C17: 56 | D17: 53.33333333 | E17: 49 | F17: 46.66666667
A18: LIMÓN | B18: 90 | C18: 48 | D18: 53.33333333 | E18: 42 | F18: 46.66666667
A19: EN PROPIEDAD | B19: 806 | C19: 423 | D19: 52.48138958 | E19: 383 | F19: 47.51861042
A20: SAN JOSÉ | B20: 284 | C20: 146 | D20: 51.4084507 | E20: 138 | F20: 48.5915493
A21: ALAJUELA | B21: 145 | C21: 78 | D21: 53.79310345 | E21: 67 | F21: 46.20689655
A22: CARTAGO | B22: 104 | C22: 56 | D22: 53.84615385 | E22: 48 | F22: 46.15384615
A23: HEREDIA | B23: 82 | C23: 41 | D23: 50 | E23: 41 | F23: 50
A24: GUANACASTE | B24: 52 | C24: 26 | D24: 50 | E24: 26 | F24: 50
A25: PUNTARENAS | B25: 75 | C25: 41 | D25: 54.66666667 | E25: 34 | F25: 45.33333333
A26: LIMÓN | B26: 64 | C26: 35 | D26: 54.6875 | E26: 29 | F26: 45.3125
A27: EN SUPLENCIA | B27: 246 | C27: 121 | D27: 49.18699187 | E27: 125 | F27: 50.81300813
A28: SAN JOSÉ | B28: 72 | C28: 35 | D28: 48.61111111 | E28: 37 | F28: 51.38888889
A29: ALAJUELA | B29: 37 | C29: 17 | D29: 45.94594595 | E29: 20 | F29: 54.05405405
A30: CARTAGO | B30: 30 | C30: 15 | D30: 50 | E30: 15 | F30: 50
A31: HEREDIA | B31: 28 | C31: 14 | D31: 50 | E31: 14 | F31: 50
A32: GUANACASTE | B32: 23 | C32: 12 | D32: 52.17391304 | E32: 11 | F32: 47.82608696
A33: PUNTARENAS | B33: 30 | C33: 15 | D33: 50 | E33: 15 | F33: 50
A34: LIMÓN | B34: 26 | C34: 13 | D34: 50 | E34: 13 | F34: 50
A37: Fuente: Departamento de Registro de Partidos Políticos del Tribunal Supremo de Elecciones.
